Cogmind - Beta 10.2 @@@ ROGUE MODE // 2021.07.04 @ 16:15:07 Player: Mares Result: Destroyed by Alpha 7 with Multirail Performance ------------- Evolutions (8) 4000 Regions Visited (33) 6600 Robots Destroyed (563) 2815 Value Destroyed (28518) 28518 Prototype IDs (57) 1140 Alien Tech Used (6) 1200 Bonus (9683) 9683 TOTAL SCORE: 53956 Bonus ------- High Alert Combat Kills 3660 Follower Combat Kills 2321 Entered Garrisons 200 Used RIF Installer 500 Network Hubs Disabled 400 Met Data Miner 300 Built Enhanced Grunts 300 Met R17 at Cetus 500 Used Core Reset Matrix 3000 Met Sigix 2000 Friendly Fire -3498 Cogmind --------- Core Integrity 0/1450 Matter 229/300 Energy 46/100 System Corruption 2% Temperature Cool (39) Movement Core (50) Location -2/Section 7 Parts ------- > --- POWER (1) -------- (None) > --- PROPULSION (4) --- (None) > --- UTILITY (14) ----- Spectral Analyzer Advanced Signal Interpreter Advanced Core Analyzer Improved Armor Integrity Analyzer > --- WEAPON (4) ------- (None) > --- INVENTORY (4) ---- Heavy Regenerative Plating Sigix Containment Pod Peak State ------------ > --- POWER ------------ Improved Quantum Reactor > --- PROPULSION ------- Biometal Heavy Treads Experimental Biometal Heavy Treads > --- UTILITY ---------- Experimental Cooling System High-capacity Storage Unit High-capacity Storage Unit High-capacity Storage Unit Spectral Analyzer Advanced Sensor Array Advanced Signal Interpreter Advanced Target Analyzer Advanced Armor Integrity Analyzer Heavy Regenerative Plating Advanced Hacking Suite Advanced Hacking Suite Quantum Router > --- WEAPON ----------- Null Cannon Railgun Railgun Enhanced Force Lance > --- INVENTORY -------- Quantum Reactor Armored Heavy Treads Advanced Heavy Treads Improved Heavy Siege Treads Experimental Coolant Injector Improved Energy Well Improved Armor Integrity Analyzer Quantum Capacitor Improved Weapon Cycler Layered Medium Armor Plating Light Regenerative Plating Antimissile System Experimental Hacking Suite Subatomic Replicator Smartbomb Launcher Advanced Micro-nuke Launcher Improved Remote Datajack Sigix Containment Pod [Rating: 180] Favorites ----------- Power Neutrino Core Engine Ion Engine Power Core Neutrino Core Reactor Quantum Reactor Propulsion Light Treads Treads Light Treads Leg Armored Leg Wheel Compact Wheel Hover Unit Cooled Aerolev Unit Flight Unit Improved VTOL Module Utility High-capacity Storage Unit Device Advanced Sensor Array Storage High-capacity Storage Unit Processor Advanced Signal Interpreter Hackware Advanced Hacking Suite Protection Light Regenerative Plating Weapon Improved KE Penetrator Energy Gun Heavy Particle Gun Energy Cannon Heavy Neutron Cannon Ballistic Gun Improved KE Penetrator Launcher Mini Grenade Launcher Special Weapon Improved Plasma Cutter Impact Weapon Power Maul Slashing Weapon Great Axe Piercing Weapon Kinetic Spear Special Melee Weapon Dirty Datajack Build | -11 -10 -10 -10 -9 -8 -8 -7 -7 -7 -7 -6 -6 -6 -6 -6 -6 -6 -5 -5 -5 -5 -5 -5 -4 -4 -4 -4 -3 -3 -3 -2 -2 -2 ------- Run | Scr Mat Min Exi Min Mat Sto Fac Low Low Dat Pro Fac Gar Fac Low Low Zio Pro Fac Ext Cet Arc Hub Fac Upp Upp War Pro Res Tes Res Qua Sec Slots Evolved 16 | . . . . . 4 . 2 . . . . 2 . . . . . . 2 . . . . 2 . . . . 2 . 2 . . Power . | . . . . . . . . . . . . . . . . . . . . . . . . . . . . . . . . . . Propulsion 2 | . . . . . 1 . . . . . . . . . . . . . 1 . . . . . . . . . . . . . . Utility 12 | . . . . . 2 . 2 . . . . 2 . . . . . . 1 . . . . 2 . . . . 2 . 1 . . Weapon 2 | . . . . . 1 . . . . . . . . . . . . . . . . . . . . . . . . . 1 . . Parts Attached 648 | 7 5 8 . 7 19 37 27 4 5 16 7 27 16 25 9 3 . 8 26 24 8 6 18 37 5 3 . 13 45 62 42 25 104 Power 48 | 1 . 2 . 1 1 1 4 . . 1 1 1 3 3 . . . 2 2 . . . 2 2 . . . 1 3 3 1 1 12 Engine 13 | 1 . 2 . 1 . . 2 . . . . . 2 3 . . . 2 . . . . . . . . . . . . . . . Core 13 | . . . . . 1 1 2 . . 1 . 1 1 . . . . . 2 . . . . . . . . 1 . 1 . . 2 Reactor 22 | . . . . . . . . . . . 1 . . . . . . . . . . . 2 2 . . . . 3 2 1 1 10 Propulsion 94 | 2 . 2 . 1 7 11 4 . . 4 . 6 4 3 . 1 . 1 5 8 1 . 3 8 . . . . 5 2 5 1 10 Treads 63 | 2 . 2 . 1 6 9 4 . . . . 1 . 1 . 1 . . . 7 1 . 3 6 . . . . 2 2 5 1 9 Leg 24 | . . . . . . . . . . 3 . 5 4 2 . . . 1 4 1 . . . . . . . . 3 . . . 1 Wheel 2 | . . . . . . . . . . . . . . . . . . . . . . . . 2 . . . . . . . . . Hover 4 | . . . . . . 2 . . . 1 . . . . . . . . 1 . . . . . . . . . . . . . . Flight 1 | . . . . . 1 . . . . . . . . . . . . . . . . . . . . . . . . . . . . Utility 270 | 2 3 . . . 5 3 4 1 2 5 3 11 1 11 6 1 . 3 10 11 1 5 11 17 3 2 . 7 21 34 27 16 44 Device 132 | . . . . . . . 2 . 1 1 1 4 . 7 3 . . 1 3 4 . 3 7 7 1 1 . 4 12 23 16 12 19 Storage 25 | 2 3 . . . 3 . . 1 . 1 . 2 . . . . . . . 1 . . 1 2 1 . . 1 . . 1 . 6 Processor 19 | . . . . . . . 1 . . 1 . . . 1 1 . . . . 1 . . . . . . . 1 1 4 3 . 5 Hackware 17 | . . . . . . . 1 . . . . 2 . 1 . . . . 2 . 1 . . 1 . . . . 1 1 2 1 4 Protection 77 | . . . . . 2 3 . . 1 2 2 3 1 2 2 1 . 2 5 5 . 2 3 7 1 1 . 1 7 6 5 3 10 Artifact . | . . . . . . . . . . . . . . . . . . . . . . . . . . . . . . . . . . Weapon 236 | 2 2 4 . 5 6 22 15 3 3 6 3 9 8 8 3 1 . 2 9 5 6 1 2 10 2 1 . 5 16 23 9 7 38 Energy Gun 33 | . . . . 1 2 9 7 1 . . . 3 . . . . . . 2 1 1 . . . . . . 1 . . . . 5 Energy Cannon 38 | . . . . . 1 1 . . . 1 . 1 . 2 . . . 1 2 1 . . 1 1 2 . . 1 1 5 4 4 9 Ballistic Gun 95 | 2 1 1 . 3 3 9 3 2 2 2 1 4 2 1 . 1 . . 4 3 2 1 1 8 . . . . 10 15 4 3 7 Ballistic Cannon . | . . . . . . . . . . . . . . . . . . . . . . . . . . . . . . . . . . Launcher 41 | . 1 3 . 1 . 3 5 . . 1 2 1 4 2 1 . . 1 1 . 2 . . 1 . . . 1 1 1 1 . 8 Special Weapon 1 | . . . . . . . . . . . . . . . . . . . . . . . . . . . . . 1 . . . . Impact Weapon 1 | . . . . . . . . . . 1 . . . . . . . . . . . . . . . . . . . . . . . Slashing Weapon 13 | . . . . . . . . . . 1 . . 2 2 2 . . . . . . . . . . . . . 1 . . . 5 Piercing Weapon 13 | . . . . . . . . . . . . . . 1 . . . . . . 1 . . . . 1 . 2 2 2 . . 4 Special Melee Weapon 1 | . . . . . . . . . 1 . . . . . . . . . . . . . . . . . . . . . . . . Unidentified Prototypes 43 | . . . . . 2 8 2 . . 2 . . . . . . . . 3 . 2 . . 2 . . . . 1 8 1 2 10 Parts Lost 173 | . . 8 . 4 1 8 8 . 1 2 3 13 8 5 . 4 . 1 6 2 1 . 6 11 . . . 3 3 9 7 5 54 Power 24 | . . 2 . . . 1 1 . . . 1 2 2 1 . 1 . . 1 . . . 1 2 . . . 1 . 2 . . 6 Propulsion 40 | . . 2 . 1 . 3 3 . . 2 . 3 3 . . 2 . . 3 1 . . 3 2 . . . 1 1 . . . 10 Utility 38 | . . . . . . 1 . . . . . 1 . 3 . 1 . . 1 . . . . 2 . . . 1 1 5 3 1 18 Weapon 71 | . . 4 . 3 1 3 4 . 1 . 2 7 3 1 . . . 1 1 1 1 . 2 5 . . . . 1 2 4 4 20 Highest Loss Streak 16 | . . 5 . 2 1 3 2 . 1 2 1 6 4 1 . 2 . 1 2 1 1 . 5 4 . . . 3 2 3 2 2 16 Average Slot Usage (%) 91 | . 100 84 71 92 99 99 95 89 92 86 96 96 96 99 100 89 75 94 96 97 94 93 91 86 83 88 89 84 87 87 90 90 79 Engine 2 | . 14 13 14 14 . . . 7 7 6 . . . 5 6 2 . 5 1 . . . . . . . . . . . . . . Core 2 | . . . . . 8 8 6 . . . 3 4 4 . . . . . 3 5 5 5 1 . . . . 4 . . . . . Reactor 1 | . . . . . . . . . . . 3 . . . . . . . . . . . 3 4 5 5 5 . 3 3 3 4 3 Treads 12 | . 28 28 28 22 26 26 19 15 15 7 . . . . . 1 6 6 4 15 17 17 15 10 10 10 10 5 7 8 8 8 7 Leg 3 | . . . . . . . . . . 3 23 18 19 20 20 12 6 12 12 5 . . . . . . . . 1 . . . . Device 4 | . . . . . . . 6 7 6 3 5 3 . 3 6 6 6 6 5 4 . 1 7 5 4 4 5 6 9 5 7 7 6 Storage 20 | . 28 28 28 28 24 27 23 23 30 25 23 22 24 20 20 20 20 20 17 17 17 17 17 15 15 21 21 18 14 14 13 13 15 Processor 8 | . . . . . . . 7 7 7 11 7 6 6 6 6 6 6 6 5 8 11 11 11 10 10 10 10 14 14 14 15 17 20 Hackware 7 | . . . . . . . 6 6 . . . 6 6 8 6 6 6 6 12 11 11 11 11 13 15 15 15 15 10 12 16 15 5 Protection 6 | . . . . . 11 9 . . . 3 8 12 15 13 12 13 13 12 9 8 11 9 2 9 9 5 5 1 9 13 6 5 3 Energy Gun 1 | . . . . 11 2 6 5 5 7 6 . 2 . . . . . . 2 . 1 . . . . . . . . . . . 2 Energy Cannon 2 | . . . . . 5 2 . . . . 3 2 . 5 . . . 4 4 5 . . 4 . 9 10 10 9 . . 4 4 1 Ballistic Gun 9 | . 27 10 . 15 19 13 13 13 15 6 15 12 7 1 1 2 1 . 5 10 11 17 11 12 . . . . 10 9 11 11 2 Launcher 1 | . . 2 . . . 4 2 . . 2 . . 7 . 2 6 1 3 1 . . . . . . . . . . . . . . Slashing Weapon 1 | . . . . . . . . . . . . . 2 11 8 3 . . . . . . . . . . . . . . . . 4 Piercing Weapon 1 | . . . . . . . . . . . . . . . 6 6 6 6 . . 2 . . . . 4 5 4 1 . . . 2 Naked Turns . | . . . . . . . . . . . . . . . . . . . . . . . . . . . . . . . . . . Heaviest Build 185 | 16 40 42 35 41 116 119 115 143 147 144 134 135 124 140 130 125 112 131 141 142 137 136 141 153 171 176 173 175 159 152 168 168 185 Greatest Support 165 | 40 40 40 40 40 60 60 60 40 40 84 84 84 48 60 52 52 30 30 60 106 140 140 160 140 140 140 140 140 140 140 140 145 165 Greatest Overweight (x) 41 | 2 . 1 . 2 1 2 5 3 3 38 1 8 3 2 2 6 3 4 6 8 2 . 41 9 1 1 1 2 2 1 2 1 4 Average Overweight (x) 1 | . . . . 1 . 1 1 2 3 4 1 1 2 2 2 2 3 3 3 1 . . . 1 . 1 1 1 1 . 1 1 1 Largest Inventory Capacity 40 | 8 16 16 16 16 28 28 28 36 36 36 28 28 28 28 28 28 28 28 28 28 28 28 28 36 36 36 36 40 28 28 28 28 34 Average Capacity 27 | 6 9 16 16 16 25 28 28 28 36 31 28 28 28 28 28 28 28 28 28 28 28 28 28 28 29 36 36 32 28 28 28 28 28 Most Carried 36 | 6 13 16 16 16 28 28 28 36 36 35 28 28 28 28 28 28 28 28 28 28 28 28 28 28 33 36 35 36 28 28 28 28 30 Average Carried 26 | 3 8 14 14 15 24 27 27 28 35 28 27 25 27 27 27 27 26 27 27 27 27 27 27 23 25 34 35 32 27 25 27 27 23 Final Capacity 36 | 8 16 16 16 16 28 28 28 36 36 28 28 28 28 28 28 28 28 28 28 28 28 28 28 28 36 36 36 28 28 28 28 28 4 Final Carried 36 | 6 13 15 14 16 28 28 28 36 35 28 27 25 28 28 28 26 28 27 28 28 28 28 26 24 33 35 35 28 28 26 27 24 4 Class Distribution -------------------- 23% | Hauler-Mutant 18% | Hacker-Mutant 8% | Hauler-Skirmisher 7% | Scavenger-Gunner 7% | Scavenger-Mutant 7% | Hacker-Gunner 6% | Mutant 5% | Scavenger-Skirmisher 4% | Hauler-Tank 3% | Hacker-Skirmisher Dominant Class ---------------- Mutant | -10/Materials Mutant | -10/Mines Mutant | -10/Exiles Scavenger-Mutant | -9/Mines Hauler-Tank | -8/Materials Hauler-Mutant | -8/Storage Hauler-Skirmisher | -7/Factory Hauler-Skirmisher | -7/Lower Caves Hauler-Skirmisher | -7/Lower Caves Hauler-Mutant | -7/Data Miner Scavenger-Mutant | -6/Proximity Caves Hauler-Mutant | -6/Factory Hauler-Mutant | -6/Garrison Hauler-Mutant | -6/Factory Hauler-Mutant | -6/Lower Caves Hauler-Mutant | -6/Lower Caves Hauler-Mutant | -6/Zion Hauler-Mutant | -5/Proximity Caves Hacker-Gunner | -5/Factory Scavenger-Gunner | -5/Extension Scavenger-Mutant | -5/Cetus Scavenger-Gunner | -5/Archives Scavenger-Skirmisher | -5/Hub_04(d) Hacker-Mutant | -4/Factory Hacker-Mutant | -4/Upper Caves Hacker-Mutant | -4/Upper Caves Hacker-Mutant | -4/Warlord Hacker-Mutant | -3/Proximity Caves Hacker-Gunner | -3/Research Hacker-Skirmisher | -3/Testing Hacker-Gunner | -2/Research Wizard-Skirmisher | -2/Quarantine Scavenger-Assassin | -2/Section 7 Resources | -11 -10 -10 -10 -9 -8 -8 -7 -7 -7 -7 -6 -6 -6 -6 -6 -6 -6 -5 -5 -5 -5 -5 -5 -4 -4 -4 -4 -3 -3 -3 -2 -2 -2 ----------- Run | Scr Mat Min Exi Min Mat Sto Fac Low Low Dat Pro Fac Gar Fac Low Low Zio Pro Fac Ext Cet Arc Hub Fac Upp Upp War Pro Res Tes Res Qua Sec Matter Collected 16247 | 262 271 228 . 289 602 951 573 215 55 160 276 594 672 489 316 283 . 380 348 443 188 168 418 1263 79 55 . 142 1103 1304 1483 644 1993 Remotely . | . . . . . . . . . . . . . . . . . . . . . . . . . . . . . . . . . . Salvage Created 29182 | 88 323 280 . 439 1200 2625 2191 142 60 291 437 1043 863 1134 334 422 . 257 564 801 711 201 1298 2450 19 155 . 40 1604 1602 1999 1025 4584 Parts 1500 | 3 12 22 . 28 76 151 117 3 4 15 21 43 51 52 12 16 . 10 24 31 37 12 78 100 4 12 . 5 90 125 117 46 183 Haulers Intercepted 15 | . . . . . 4 5 3 . . . . . . . . . . . . . . . 1 . . . . . . . . . 2 Recyclers Shooed 20 | . . 2 . 3 3 . 1 . . . . . . 2 . . . . 1 1 . . . 1 . . . . 2 . 1 1 2 Parts Field Recycled . | . . . . . . . . . . . . . . . . . . . . . . . . . . . . . . . . . . Retrieved Matter . | . . . . . . . . . . . . . . . . . . . . . . . . . . . . . . . . . . Parts Self-Destructed 72 | . . . . . . . . 3 4 . 13 . . . 3 8 3 23 . . . . . . 4 10 . 1 . . . . . Prevented 3 | . . . . . . . . . . . 2 . . . . . . 1 . . . . . . . . . . . . . . . Kills | -11 -10 -10 -10 -9 -8 -8 -7 -7 -7 -7 -6 -6 -6 -6 -6 -6 -6 -5 -5 -5 -5 -5 -5 -4 -4 -4 -4 -3 -3 -3 -2 -2 -2 ------- Run | Scr Mat Min Exi Min Mat Sto Fac Low Low Dat Pro Fac Gar Fac Low Low Zio Pro Fac Ext Cet Arc Hub Fac Upp Upp War Pro Res Tes Res Qua Sec Combat Hostiles Destroyed 432 | . 5 9 . 10 16 40 31 1 1 3 10 15 21 19 5 12 . 10 9 8 4 1 16 32 . 5 . 5 21 23 22 11 67 Melee 47 | . . 1 . 1 . . . . . . . . 2 8 2 2 . . . . . . . . . 5 . . . 2 . . 24 Guns 189 | . 3 2 . 6 16 23 14 1 1 . 6 8 3 . . 1 . . 2 4 1 1 9 23 . . . . 17 19 12 4 13 Cannons 38 | . . . . . . 5 . . . . . . . 1 . . . . 2 4 . . 4 . . . . 1 . . 9 7 5 AOE 139 | . 2 6 . 3 . 11 16 . . . 4 5 16 8 3 9 . 10 3 . . . . 9 . . . 4 4 2 . . 24 Classes Destroyed 22 | 1 2 4 . 1 3 3 2 1 . . 1 . . . 2 . . . . . . . . 1 . . . . . . . 1 . Worker 16 | . . 1 . . 1 2 4 . . . . . . . . . . . . . . . 1 1 . . . . 1 4 . . 1 Builder 17 | . . 1 . . 2 1 3 . . . . 1 . 1 . . . . . . . . 1 3 . . . . . 2 1 . 1 Tunneler 3 | . . 1 . . 1 . . . . . . 1 . . . . . . . . . . . . . . . . . . . . . Hauler 15 | . . . . . 4 5 3 . . . . . . . . . . . . . . . 1 . . . . . . . . . 2 Recycler 23 | 1 2 1 . 3 2 3 2 . . . . . . 1 . . . . . 1 . . . 1 . . . . 2 . 2 1 1 Minesweeper 3 | . . . . . . . . 2 . . . . . . . . . . . . . . . . 1 . . . . . . . . Mechanic 4 | . . . . . . . 1 . . . . . . . . . . 1 . . . . . . . . . . . . . . 2 Operator 16 | . 3 . . . 1 2 1 . . . . . . . . . . . 1 . . 3 2 1 . . . . . 1 . . 1 Watcher 23 | . . . . . 2 2 3 . . . . . . . . . . . 1 . 2 . 3 2 . . . . 3 . 3 1 1 Swarmer 67 | . . 3 . 8 3 . 6 . . . 7 . 6 . . 4 . 6 . . . . . . . 4 . 5 8 . . . 7 Grunt 171 | . 5 6 . . 9 25 15 1 . . 2 9 13 12 3 6 . 2 3 4 . . 4 14 . . . . 4 5 . 2 27 Brawler 10 | . . . . . . 2 1 . . . . 1 . 1 . 1 . . . . . . . 1 . . . . . . . . 3 Duelist 8 | . . . . . . 1 . . . . . . . 1 . . . 2 1 . . . . 1 . . . . . 1 . . 1 Protector 7 | . . . . . . 2 1 . . . . . . 1 . . . . . . . . 2 . . . . . . . . . 1 Sentry 52 | . . . . 2 3 9 2 . 1 . 1 2 2 2 1 1 . . 1 3 . 1 3 5 . . . . 4 . 6 . 3 Specialist 3 | . . . . . . . . . . . . . . . . . . . . . . . . . . . . . . . . 3 . Hunter 31 | . . . . . 1 1 4 . . . . 2 . 1 . . . . 3 . . . 2 6 . . . . . 2 . 3 6 Programmer 70 | . . . . . . . 2 . . . . 1 . 2 . . . . 1 . . . 4 4 . 1 . . 5 15 16 3 16 Behemoth 1 | . . . . . . . . . . . . . . . . . . . . . . . . 1 . . . . . . . . . Cetus Guard 4 | . . . . . . . . . . . . . . . . . . . . . 4 . . . . . . . . . . . . S7 Guard 3 | . . . . . . . . . . . . . . . . . . . . . . . . . . . . . . . . . 3 Enhanced Grunt 3 | . . . . . . . . . . 3 . . . . . . . . . . . . . . . . . . . . . . . Lightning 1 | . . . . . . . . . . . . . . . . . . . . . . . 1 . . . . . . . . . . Decomposer 4 | . . . . . . . . . . . . . . . 3 1 . . . . . . . . . . . . . . . . . Samaritan 6 | . . . . . . . . . . . 2 . . . . 3 . . . . . . . . . . . 1 . . . . . Tinkerer 1 | . . . . . . . . . . . . . . . 1 . . . . . . . . . . . . . . . . . . Thug 4 | . . . . . . . . . . . . . . . . . . . . 3 1 . . . . . . . . . . . . Savage 1 | . . . . . . . . . . . . . . . . . . . . . 1 . . . . . . . . . . . . Butcher 1 | . . . . . . . . . . . . . . . . . . . . . 1 . . . . . . . . . . . . Guerrilla 3 | . . . . . . . . . . . . . . . . . . . . . 3 . . . . . . . . . . . . Mutant 1 | . . . . . . . . . . . . . . . 1 . . . . . . . . . . . . . . . . . . Best Kill Streak 13 | 1 3 5 . 5 5 8 6 2 1 4 4 7 10 6 3 7 . 4 3 2 3 3 4 11 1 4 . 4 6 4 5 4 13 Combat Bots Only 13 | . 3 3 . 4 4 6 5 1 1 3 4 7 10 5 3 7 . 4 2 2 2 1 4 11 . 4 . 4 6 4 5 3 13 Max Kills in Single Turn 5 | 1 1 4 . 3 2 3 5 1 1 1 3 2 3 3 1 2 . 3 2 2 3 1 3 5 1 1 . 2 3 2 2 1 3 Gunslinging 1 | . . . . 1 . . . . . . . . . . . . . . . . . . . 1 . . . . 1 1 . . . Exploded 5 | . 1 3 . 3 . 3 5 . . . 3 2 3 2 1 2 . 3 2 . . . . 5 . . . 2 3 1 . . 3 Melee 1 | . . 1 . 1 . . . . . . . . 1 1 1 1 . . . . . . . . . 1 . . . 1 . . 1 Uniques/NPCs Destroyed 2 | . . . . . . . . . . 1 . . . . . . . . . . 1 . . . . . . . . . . . . Data Miner (-7/Data Miner) Revision 17 (-5/Cetus) Combat | -11 -10 -10 -10 -9 -8 -8 -7 -7 -7 -7 -6 -6 -6 -6 -6 -6 -6 -5 -5 -5 -5 -5 -5 -4 -4 -4 -4 -3 -3 -3 -2 -2 -2 -------- Run | Scr Mat Min Exi Min Mat Sto Fac Low Low Dat Pro Fac Gar Fac Low Low Zio Pro Fac Ext Cet Arc Hub Fac Upp Upp War Pro Res Tes Res Qua Sec Damage Taken 49641 | . 339 653 . 559 800 2068 1349 29 207 274 811 2472 1976 1703 713 1119 . 117 1202 634 233 77 2799 4380 . 287 . 423 1771 3185 2696 2983 13782 Core 4666 | . 57 36 . 153 123 239 192 14 29 89 67 239 139 187 101 155 . 15 132 13 . . 324 231 . 36 . 88 28 162 188 69 1560 Absorbed by Shields 350 | . . . . . . . . . . . . 11 . . . . . . . 187 152 . . . . . . . . . . . . Reduced by Siege Mode 690 | . . . . . . . . . . . . . . . . . . . . . . . 6 102 . . . . 67 36 89 138 252 Core Remaining (%) 48 | 100 . . . 1 . 34 . . . . 44 . . . . . . 1 . . . . 53 . . . . 69 . 85 . . . Volleys Fired 1251 | 1 34 33 . 29 57 129 80 9 3 4 35 55 62 25 10 23 . 11 29 30 12 9 75 80 4 . . 15 59 60 120 37 121 Largest 4 | 2 2 2 . 2 3 3 3 3 3 1 3 3 3 2 1 1 . 2 3 3 3 3 3 3 2 . . 1 3 3 4 4 4 Hottest 356 | 40 40 50 . 79 137 135 130 108 108 36 143 168 89 150 30 30 . 114 191 164 135 105 168 175 220 . . 110 175 176 288 310 356 Shots Fired 2652 | 2 64 43 . 47 167 284 189 27 9 4 70 126 75 31 11 22 . 13 50 90 21 27 150 208 8 1 . 15 162 146 263 124 203 Gun 2054 | 2 60 35 . 46 160 240 170 27 9 . 53 109 52 4 4 2 . . 29 60 15 27 82 200 . . . . 156 128 157 81 146 Cannon 419 | . . . . . 7 30 . . . . 9 10 . 20 . . . 3 16 30 . . 68 5 8 1 . 11 3 15 106 43 34 Launcher 178 | . 4 8 . 1 . 14 19 . . 4 8 7 23 7 7 20 . 10 5 . 6 . . 3 . . . 4 2 3 . . 23 Special 1 | . . . . . . . . . . . . . . . . . . . . . . . . . . . . . 1 . . . . Kinetic 1760 | 2 60 35 . 37 118 170 118 18 6 . 53 83 52 4 4 2 . . 18 60 12 27 82 200 . . . . 156 128 157 81 77 Thermal 651 | . . . . 9 45 98 52 9 3 . 9 27 . . . . . . 16 30 . . 68 5 8 1 . 11 4 15 106 43 92 Explosive 117 | . 4 8 . 1 . 3 . . . . . . 23 5 7 20 . 10 1 . . . . 3 . . . 4 2 3 . . 23 Electromagnetic 124 | . . . . . 4 13 19 . . 4 8 16 . 22 . . . 3 15 . 9 . . . . . . . . . . . 11 Robot Hit Streak 48 | 1 8 4 . 16 16 15 13 6 11 3 7 9 28 6 3 9 . 11 8 16 13 4 20 15 7 . . 6 22 26 26 23 48 Robot Miss Streak 8 | 1 2 3 . 1 2 3 4 2 1 1 8 6 3 2 1 2 . 1 4 3 3 2 3 4 1 . . 6 2 3 3 2 4 Penetration Max 2 | . . . . . . . . . . . . 1 2 . . . . . 1 1 1 1 1 1 . . . . 1 1 . . 1 Secondary Targets 22 | . . . . 2 2 . 1 . . . 1 1 . . . . . . . . . . . 3 . . . . 2 6 . . 4 Max Gunslinging Chain 1 | . . . . 1 1 . 1 . . . 1 1 . . . . . . . . . . . 1 . . . . 1 1 . . 1 Capacitor 19 | . . . . . . . . . . . . . . . . . . . . . . . . . . . . . . . . . 19 Shots Hit Robots 1874 | 1 40 27 . 38 116 165 124 17 7 4 36 90 51 52 20 24 . 5 21 63 12 18 69 146 6 8 . 7 126 105 140 75 261 Core Hits 1191 | 2 18 23 . 18 49 104 79 6 3 3 23 52 76 56 21 29 . 29 22 36 25 10 39 91 2 6 . 8 58 55 58 27 163 Critical Hits 154 | . . . . . 2 . 1 . . . 1 3 10 1 . 2 . . . 6 1 5 15 24 . . . . 7 21 12 8 35 Critical Kills 68 | . . . . . 2 . 1 . . . . 1 3 . . . . . . 3 . 2 11 11 . . . . 4 11 6 3 10 Critical Parts Destroyed 79 | . . . . . . . . . . . 1 2 5 1 . 2 . . . 3 1 3 4 12 . . . . 3 10 6 5 21 Melee Attacks 279 | . . . . . . . . . . 1 . . 9 52 17 16 . . 2 . 1 . . . . 13 . . 9 17 . . 142 Impact . | . . . . . . . . . . . . . . . . . . . . . . . . . . . . . . . . . . Slashing 136 | . . . . . . . . . . 1 . . 9 48 2 1 . . . . . . . . . . . . . . . . 75 Piercing 143 | . . . . . . . . . . . . . . 4 15 15 . . 2 . 1 . . . . 13 . . 9 17 . . 67 Sneak Attacks 25 | . . . . . . . . . . 1 . . . . 4 6 . . 1 . 1 . . . . . . . 2 1 . . 9 Combat Hostiles . | . . . . . . . . . . . . . . . . . . . . . . . . . . . . . . . . . . Follow-up Attacks 26 | . . . . . . . . . . . . . . 6 . . . . . . . . . . . . . . . . . . 20 Damage Inflicted 76105 | 19 715 901 . 588 1770 4135 3506 327 121 225 1057 2338 2609 3385 1701 2447 . 1653 1469 2421 1741 455 2897 6322 236 334 . 1255 4404 4214 4873 2330 15657 Guns 28860 | 19 421 212 . 395 1525 2098 1808 327 121 . 508 1327 472 35 60 40 . . 346 1453 275 455 1116 3845 . . . . 3165 2520 2407 1067 2843 Cannons 9978 | . . . . . 159 568 . . . . 226 210 . 413 . . . 43 228 968 . . 979 94 236 . . 237 81 344 2317 1263 1612 Explosions 26963 | . 294 673 . 189 79 1446 1680 . . 128 323 795 1970 1671 608 1506 . 1610 705 . 1334 . 767 2383 . . . 1018 907 986 113 . 5778 Melee 10108 | . . . . . . . . . . 97 . . 167 1259 1033 901 . . 190 . 132 . . . . 334 . . 236 335 . . 5424 Ramming 181 | . . 16 . 4 7 23 18 . . . . 6 . 7 . . . . . . . . 35 . . . . . . 29 36 . . Kinetic 25039 | 19 421 212 . 279 964 1473 1075 194 84 . 508 1065 472 35 60 40 . . 114 1453 212 455 1116 3845 . . . . 3165 2520 2407 1067 1784 Thermal 14787 | . . 94 . 116 682 1297 898 133 37 . 362 633 . 192 . . . . 228 968 448 . 999 725 236 . . 237 96 344 2317 1263 2482 Explosive 19616 | . 294 579 . 189 . 616 105 . . . . . 1970 1123 608 1506 . 1610 462 . . . . 1752 . . . 1018 907 986 113 . 5778 Electromagnetic 6374 | . . . . . 117 726 1410 . . 128 187 634 . 769 . . . 43 475 . 949 . 747 . . . . . . . . . 189 Impact . | . . . . . . . . . . . . . . . . . . . . . . . . . . . . . . . . . . Slashing 4504 | . . . . . . . . . . 97 . . 167 1219 . . . . . . . . . . . . . . . . . . 3021 Piercing 5604 | . . . . . . . . . . . . . . 40 1033 901 . . 190 . 132 . . . . 334 . . 236 335 . . 2403 Highest Corruption 30 | . . . . . . 2 1 1 1 1 1 16 16 17 20 20 20 20 2 2 3 3 18 4 4 5 5 5 3 30 19 22 7 Average Corruption 8 | . . . . . . 1 1 1 1 1 1 11 16 16 19 20 20 20 1 2 2 2 3 2 4 4 5 4 2 16 13 19 3 Corruption Purged 18 | . . . . . . . . . . . . . . . . . . . . . . 3 . . . . . 5 2 3 . . 5 Effects 929 | . . . . . . 16 6 3 3 1 3 39 64 104 58 67 15 54 4 17 10 6 14 18 10 10 1 31 8 117 123 85 42 Message Errors 182 | . . . . . . 11 1 2 3 1 . 2 8 21 10 9 2 5 2 7 2 4 4 5 3 4 . 11 . 20 20 11 14 Matter Fused 153 | . . . . . . . . . . . . 5 9 21 13 9 5 10 . . 3 . 2 3 5 3 . 4 2 25 14 16 4 Heat Flow Errors 87 | . . . . . . 1 . . . . . 4 4 12 4 7 2 7 . 3 2 . 1 2 2 1 . 3 1 13 8 6 4 Energy Discharges 83 | . . . . . . 2 . 1 . . 2 2 7 7 7 8 3 8 . 4 2 . . 1 . 1 1 5 . 5 9 6 2 Parts Rejected 6 | . . . . . . . . . . . . . 1 . . . . 2 . . . . 1 1 . . . . . 1 . . . Data Loss (minor) 65 | . . . . . . 2 3 . . . . 6 5 6 4 4 . 4 . 1 1 . 1 3 . . . 6 . 5 9 2 3 Data Loss (major) 29 | . . . . . . . . . . . . 1 1 5 4 4 . 1 . . . . . . . . . . . 5 3 3 2 Misfires 26 | . . . . . . . . . . . . 4 4 1 1 . . 2 . . . . . . . 1 . 1 . 4 6 2 . Alerts 10 | . . . . . . . . . . . . . 2 . 1 1 1 1 . . . . . . . . . . . 1 3 . . Misdirections 98 | . . . . . . . . . . . . 3 7 16 8 12 2 9 . . . . . . . . . . . 16 13 12 . Targeting Errors 166 | . . . . . . . 2 . . . 1 9 15 13 6 12 . 4 2 2 . 2 5 . . . . . 5 21 31 24 12 Weapon Failures 24 | . . . . . . . . . . . . 3 1 2 . 1 . 1 . . . . . 3 . . . 1 . 1 7 3 1 Overload Shots . | . . . . . . . . . . . . . . . . . . . . . . . . . . . . . . . . . . Overflow Damage 2671 | . 19 25 . 6 . 23 82 . . . 55 59 8 124 118 209 . 34 169 4 7 . 107 194 73 . . 159 51 196 115 68 766 Projectiles 674 | . . . . . . . . . . . 15 28 . 34 . . . . . 4 . . 38 . 73 . . 34 8 54 115 68 203 Explosions 1222 | . 19 25 . 6 . 23 82 . . . 40 31 8 50 16 15 . 34 56 . 7 . 69 194 . . . 125 43 80 . . 299 Melee 775 | . . . . . . . . . . . . . . 40 102 194 . . 113 . . . . . . . . . . 62 . . 264 Knockbacks 2 | . . 1 . . . . . . . . . . . . . . . . . . . . . . . . . . . 1 . . . Impact 2 | . . 1 . . . . . . . . . . . . . . . . . . . . . . . . . . . 1 . . . Kinetic . | . . . . . . . . . . . . . . . . . . . . . . . . . . . . . . . . . . Secondary . | . . . . . . . . . . . . . . . . . . . . . . . . . . . . . . . . . . Self-Inflicted Damage 2441 | . . 14 . 31 78 166 264 . . . . 27 153 63 141 180 . 39 145 . 21 . 190 140 . . . . . 171 117 . 501 Shots 69 | . . 2 . 1 2 7 8 . . . . 2 7 2 6 8 . 1 3 . 1 . 2 3 . . . . . 4 1 . 9 Rammed 15 | . . 3 . 1 1 1 1 . . . . . . . . . . . . . . . 2 . . . . . . 2 4 . . Targets Rammed 18 | . . 4 . 1 1 1 1 . . . . 1 . 1 . . . . . . . . 2 . . . . . . 2 4 . . Kicked 2 | . . . . . . . . . . . . 1 . 1 . . . . . . . . . . . . . . . . . . . Crushed 1 | . . 1 . . . . . . . . . . . . . . . . . . . . . . . . . . . . . . . Highest Temperature 480 | . 18 31 . 90 480 389 289 138 126 . 342 386 192 344 199 247 162 219 311 398 311 78 369 374 451 231 . 208 304 326 400 348 303 Average Temperature 105 | . 8 11 . 32 135 91 81 62 56 . 141 167 54 121 74 108 78 81 95 115 158 31 114 74 176 99 . 79 114 115 98 88 95 Received Heat Transfer 6799 | . 186 363 . 72 270 918 231 18 48 36 129 516 630 435 108 300 . . 90 140 8 9 120 309 . . . . 234 81 117 81 1350 Effects 35 | . . . . . 2 6 1 . . . . 9 . . . . . 1 2 1 . . 2 . 1 . . . 4 4 2 . . Shutdowns 3 | . . . . . 1 1 . . . . . . . . . . . . . . . . . . 1 . . . . . . . . Energy Bleed 14 | . . . . . 1 2 1 . . . . 5 . . . . . 1 . . . . 1 . . . . . 1 . 2 . . Interference 15 | . . . . . . 2 . . . . . 3 . . . . . . 2 1 . . . . . . . . 3 4 . . . Short Circuit 3 | . . . . . . 1 . . . . . 1 . . . . . . . . . . 1 . . . . . . . . . . Siege Activations 42 | . . . . . . . . . . . . . . . . . . . . . . 1 5 5 . . . . 5 4 12 4 6 Total Turns 548 | . . . . . . . . . . . . . . . . . . . . . . 1 47 107 . . . . 88 28 96 80 101 Longest Duration 39 | . . . . . . . . . . . . . . . . . . . . . . 1 14 39 . . . . 25 13 16 29 32 Robots Corrupted 19 | . . . . . . 1 1 . . 3 . 2 . 3 . . . . 2 . 3 . 3 . . . . . . . . . 1 Combat Hostiles 18 | . . . . . . 1 1 . . 3 . 2 . 2 . . . . 2 . 3 . 3 . . . . . . . . . 1 Parts Fried 44 | . . . . . 1 5 6 . . 3 . . . 1 . . . . 7 1 9 . 9 . . . . . . . . . 2 Impact Corruptions . | . . . . . . . . . . . . . . . . . . . . . . . . . . . . . . . . . . Robots Melted 1 | . . . . . . . . . . . . . . . . . . . . . . . . . . . . . . . 1 . . Combat Hostiles 1 | . . . . . . . . . . . . . . . . . . . . . . . . . . . . . . . 1 . . Parts Melted 25 | . . . . . 1 . 4 . 1 . . 1 . . . . . . . . . . 2 . . . . . . 2 9 1 4 Heat Transferred 17205 | . . 100 . 296 1295 2331 1622 259 74 . 250 595 . 176 . . . . 259 998 350 . 1450 424 150 . . 150 87 450 2425 1036 2428 Parts Sabotaged . | . . . . . . . . . . . . . . . . . . . . . . . . . . . . . . . . . . Parts Stolen . | . . . . . . . . . . . . . . . . . . . . . . . . . . . . . . . . . . Parts Stripped . | . . . . . . . . . . . . . . . . . . . . . . . . . . . . . . . . . . Power Chain Reactions 18 | . . . . . 1 4 4 . . 1 2 3 . 1 . . . . . . 1 . 1 . . . . . . . . . . Missiles Intercepted . | . . . . . . . . . . . . . . . . . . . . . . . . . . . . . . . . . . Alert | -11 -10 -10 -10 -9 -8 -8 -7 -7 -7 -7 -6 -6 -6 -6 -6 -6 -6 -5 -5 -5 -5 -5 -5 -4 -4 -4 -4 -3 -3 -3 -2 -2 -2 ------- Run | Scr Mat Min Exi Min Mat Sto Fac Low Low Dat Pro Fac Gar Fac Low Low Zio Pro Fac Ext Cet Arc Hub Fac Upp Upp War Pro Res Tes Res Qua Sec Peak Influence 1335 | 5 158 246 . 195 293 690 944 . . . . 317 1000 1088 . . . . 441 504 634 450 1037 1335 . . . . 416 411 300 319 919 Initial 525 | . 3 16 . . . . 265 . . . . 81 99 525 . . . . 243 172 235 173 . 497 . . . . . 191 114 163 9 Average 326 | 2 68 67 . 90 86 487 482 . . . . 161 660 569 . . . . 293 238 457 252 225 792 . . . . 181 210 136 84 507 Maximum Alert Level 4 | . . 1 . . 1 2 3 . . . . 1 3 3 . . . . 2 2 2 2 3 4 . . . . 2 2 1 1 3 Low Security (%) 38 | 100 100 87 . 100 88 7 . . . . . 69 10 . . . . . 20 38 . 35 37 . . . . . 65 38 69 86 20 Level 1 27 | . . 12 . . 11 24 47 . . . . 30 5 10 . . . . 64 46 42 35 58 . . . . . 33 58 30 13 9 Level 2 25 | . . . . . . 68 30 . . . . . 43 75 . . . . 15 15 57 29 4 52 . . . . 1 3 . . 43 Level 3 7 | . . . . . . . 21 . . . . . 40 13 . . . . . . . . . 19 . . . . . . . . 26 Level 4 1 | . . . . . . . . . . . . . . . . . . . . . . . . 28 . . . . . . . . . Level 5 . | . . . . . . . . . . . . . . . . . . . . . . . . . . . . . . . . . . High Security . | . . . . . . . . . . . . . . . . . . . . . . . . . . . . . . . . . . Max Security . | . . . . . . . . . . . . . . . . . . . . . . . . . . . . . . . . . . Squads Dispatched 105 | . 6 . . . 2 10 16 . . . . 7 . 5 . . . 1 4 1 . . 8 7 . . . . 5 9 8 3 13 Investigation 21 | . 3 . . . 1 3 5 . . . . 2 . 2 . . . . . 1 . . 2 . . . . . . . . 1 1 Extermination 33 | . . . . . . . 3 . . . . 2 . 2 . . . . 1 . . . 2 2 . . . . 2 5 6 2 6 Reinforcement 30 | . 3 . . . 1 2 6 . . . . . . . . . . . 2 . . . 4 3 . . . . . 4 2 . 3 Assault 11 | . . . . . . 2 2 . . . . . . 1 . . . 1 . . . . . 2 . . . . . . . . 3 Garrison 10 | . . . . . . 3 . . . . . 3 . . . . . . 1 . . . . . . . . . 3 . . . . Intercept . | . . . . . . . . . . . . . . . . . . . . . . . . . . . . . . . . . . Construction Impeded 9 | . . . . . . . 3 . . . . . . . . . . . . . . . 2 1 . . . . . 1 1 . 1 Haulers Reinforced 5 | . . . . . . . 1 . . . . . . . . . . . 1 . . . 1 1 . . . . . . . . 1 Stealth | -11 -10 -10 -10 -9 -8 -8 -7 -7 -7 -7 -6 -6 -6 -6 -6 -6 -6 -5 -5 -5 -5 -5 -5 -4 -4 -4 -4 -3 -3 -3 -2 -2 -2 --------- Run | Scr Mat Min Exi Min Mat Sto Fac Low Low Dat Pro Fac Gar Fac Low Low Zio Pro Fac Ext Cet Arc Hub Fac Upp Upp War Pro Res Tes Res Qua Sec Distress Signals 22 | . 1 . . 1 1 5 1 . . . . . . . . . . . . . 2 . 1 4 . . . . . 2 . 1 3 Communications Jammed 44 | . . . . . . . . . . . . . . 18 . . . . . 2 . . 23 1 . . . . . . . . . Distress Signals 27 | . . . . . . . . . . . . . . 17 . . . . . 2 . . 8 . . . . . . . . . . Times Spotted 676 | . 8 10 . 11 24 63 46 1 1 2 12 19 28 27 5 12 . 16 20 27 9 12 40 56 . 5 . 7 30 37 35 17 96 Peak Tracking Total 15 | . 3 3 . 4 5 7 6 1 1 2 4 6 10 6 3 5 . 8 3 5 5 1 13 15 . 4 . 5 6 4 4 4 10 Tactical Retreats 48 | . . . . . . 9 3 . . . 2 1 7 1 . . . . 3 2 . . 1 3 . . . 2 5 . . 1 8 Traps | -11 -10 -10 -10 -9 -8 -8 -7 -7 -7 -7 -6 -6 -6 -6 -6 -6 -6 -5 -5 -5 -5 -5 -5 -4 -4 -4 -4 -3 -3 -3 -2 -2 -2 ------- Run | Scr Mat Min Exi Min Mat Sto Fac Low Low Dat Pro Fac Gar Fac Low Low Zio Pro Fac Ext Cet Arc Hub Fac Upp Upp War Pro Res Tes Res Qua Sec Traps Triggered 36 | . . . . . . 2 5 . . . . 6 1 3 . . . . . 9 . . . . . . . . 1 2 4 2 1 Indirectly 1 | . . . . . . . 1 . . . . . . . . . . . . . . . . . . . . . . . . . . Trap Hack Attempts . | . . . . . . . . . . . . . . . . . . . . . . . . . . . . . . . . . . Triggered . | . . . . . . . . . . . . . . . . . . . . . . . . . . . . . . . . . . Disarmed . | . . . . . . . . . . . . . . . . . . . . . . . . . . . . . . . . . . Reprogrammed . | . . . . . . . . . . . . . . . . . . . . . . . . . . . . . . . . . . Reused 1 | . . . . . . . . . . 1 . . . . . . . . . . . . . . . . . . . . . . . Traps Extracted . | . . . . . . . . . . . . . . . . . . . . . . . . . . . . . . . . . . Installed 11 | . . . . . . . . . . 11 . . . . . . . . . . . . . . . . . . . . . . . Triggered 2 | . . . . . . . . . . . 1 . . . . . . 1 . . . . . . . . . . . . . . . Machines | -11 -10 -10 -10 -9 -8 -8 -7 -7 -7 -7 -6 -6 -6 -6 -6 -6 -6 -5 -5 -5 -5 -5 -5 -4 -4 -4 -4 -3 -3 -3 -2 -2 -2 ---------- Run | Scr Mat Min Exi Min Mat Sto Fac Low Low Dat Pro Fac Gar Fac Low Low Zio Pro Fac Ext Cet Arc Hub Fac Upp Upp War Pro Res Tes Res Qua Sec Machines Disabled 113 | . 1 8 . . 1 9 6 . . . . 6 2 4 1 . . . 7 2 1 3 25 8 . . . . 1 6 7 6 9 Max in Single Turn 10 | . 1 8 . . 1 1 2 . . . . 2 1 2 1 . . . 5 . . 1 10 3 . . . . 1 2 1 1 1 Garrison Access 6 | . . . . . . 1 . . . . . . . 1 . . . . . . . . . . . . . . 2 . 1 . 1 Garrison Relay 2 | . . . . . . . . . . . . . 2 . . . . . . . . . . . . . . . . . . . . Network Hub 2 | . . . . . . . . . . . . . . . . . . . . . . . 2 . . . . . . . . . . Machines Sabotaged . | . . . . . . . . . . . . . . . . . . . . . . . . . . . . . . . . . . Garrisons Compromised . | . . . . . . . . . . . . . . . . . . . . . . . . . . . . . . . . . . Overloaded Fab Kills . | . . . . . . . . . . . . . . . . . . . . . . . . . . . . . . . . . . Fab Network Shutdowns 1 | . . . . . . . . . . . . . . 1 . . . . . . . . . . . . . . . . . . . Hacking | -11 -10 -10 -10 -9 -8 -8 -7 -7 -7 -7 -6 -6 -6 -6 -6 -6 -6 -5 -5 -5 -5 -5 -5 -4 -4 -4 -4 -3 -3 -3 -2 -2 -2 --------- Run | Scr Mat Min Exi Min Mat Sto Fac Low Low Dat Pro Fac Gar Fac Low Low Zio Pro Fac Ext Cet Arc Hub Fac Upp Upp War Pro Res Tes Res Qua Sec Machines Accessed 109 | . 5 . 1 . 2 9 12 2 1 4 . 4 . 13 . . 1 . 2 12 1 . 9 3 . . . . 4 6 8 5 5 Terminals 74 | . 3 . . . 2 7 7 . . . . 1 . 9 . . . . 2 12 1 . 9 1 . . . . 1 5 5 5 4 Fabricators 6 | . . . . . . . 1 . . . . 2 . 1 . . . . . . . . . 1 . . . . 1 . . . . Repair Stations 2 | . . . . . . . . . . . . . . . . . . . . . . . . 1 . . . . . 1 . . . Recycling Units 8 | . 2 . . . . 2 3 . . . . . . . . . . . . . . . . . . . . . . . 1 . . Scanalyzers 3 | . . . . . . . . . . . . . . 2 . . . . . . . . . . . . . . . . 1 . . Garrison Access 7 | . . . . . . . 1 . . . . 1 . 1 . . . . . . . . . . . . . . 2 . 1 . 1 Total Hacks 371 | . 11 . 1 . 5 20 25 2 1 25 . 11 . 28 . . 4 . 7 28 3 . 31 21 . . . . 9 37 36 36 30 Successful 198 | . 10 . 1 . 2 10 9 2 1 25 . 6 . 13 . . 4 . 2 13 . . 10 9 . . . . 7 22 19 19 14 Failed 173 | . 1 . . . 3 10 16 . . . . 5 . 15 . . . . 5 15 3 . 21 12 . . . . 2 15 17 17 16 Catastrophic 34 | . . . . . 1 1 5 . . . . 1 . 6 . . . . 3 2 2 . 4 2 . . . . 1 1 2 . 3 Database Lockouts . | . . . . . . . . . . . . . . . . . . . . . . . . . . . . . . . . . . Manual 143 | . 7 . . . 3 12 13 . . . . 4 . 5 . . 1 . 5 7 1 . 21 5 . . . . 5 19 16 10 9 Terminals 268 | . 9 . . . 5 18 14 . . . . 3 . 17 . . . . 7 28 3 . 31 7 . . . . 3 34 25 36 28 Fabricators 20 | . . . . . . . 3 . . . . 7 . 3 . . . . . . . . . 3 . . . . 4 . . . . Repair Stations 14 | . . . . . . . . . . . . . . . . . . . . . . . . 11 . . . . . 3 . . . Recycling Units 17 | . 2 . . . . 2 7 . . . . . . . . . . . . . . . . . . . . . . . 6 . . Scanalyzers 11 | . . . . . . . . . . . . . . 7 . . . . . . . . . . . . . . . . 4 . . Garrison Access 8 | . . . . . . . 1 . . . . 1 . 1 . . . . . . . . . . . . . . 2 . 1 . 2 Terminal Hacks 126 | . 6 . 1 . 1 6 5 2 1 25 . 1 . 3 . . 4 . 1 11 . . 8 1 . . . . . 13 9 17 11 Record 17 | . 1 . 1 . . . . 1 . 11 . . . 1 . . . . . . . . . . . . . . . . 1 1 . Part Schematic 18 | . 1 . . . . . . . . 8 . . . . . . 4 . . . . . 1 . . . . . . 3 . 1 . Robot Schematic 4 | . . . . . . . 1 . . 3 . . . . . . . . . . . . . . . . . . . . . . . Robot Analysis 3 | . 1 . . . . . . . . . . . . . . . . . . . . . . . . . . . . . 1 . 1 Prototype ID Bank 5 | . 1 . . . . . . . . 3 . . . . . . . . . . . . . . . . . . . . . 1 . Open Door 15 | . . . . . . 2 . 1 1 . . . . . . . . . . 10 . . . . . . . . . . . 1 . Level Access Points 2 | . . . . . . . . . . . . . . . . . . . . . . . 1 . . . . . . 1 . . . Branch Access Points 6 | . 2 . . . . . 1 . . . . . . 1 . . . . . . . . . 1 . . . . . . 1 . . Machine Index 2 | . . . . . . . . . . . . . . . . . . . . . . . 1 . . . . . . . 1 . . Terminal Index 7 | . . . . . . 1 1 . . . . . . 1 . . . . . . . . 1 . . . . . . 1 . 1 1 Fabricator Index 1 | . . . . . . . . . . . . . . . . . . . . . . . . . . . . . . . . 1 . Garrison Index 2 | . . . . . . . 1 . . . . 1 . . . . . . . . . . . . . . . . . . . . . Alert Level 5 | . . . . . . 1 . . . . . . . . . . . . . . . . . . . . . . . . . . 4 Unreport Threat 19 | . . . . . 1 2 . . . . . . . . . . . . 1 1 . . 1 . . . . . . 3 3 3 4 Locate Traps 2 | . . . . . . . . . . . . . . . . . . . . . . . . . . . . . . 2 . . . Dispatch Records 1 | . . . . . . . . . . . . . . . . . . . . . . . . . . . . . . . . 1 . Patrol Status 1 | . . . . . . . . . . . . . . . . . . . . . . . . . . . . . . . . 1 . Recall Investigation 1 | . . . . . . . . . . . . . . . . . . . . . . . . . . . . . . . . 1 . Hauler Manifests 1 | . . . . . . . . . . . . . . . . . . . . . . . . . . . . . . . . 1 . Registered Components 4 | . . . . . . . 1 . . . . . . . . . . . . . . . . . . . . . . 1 1 1 . Registered Prototypes 1 | . . . . . . . . . . . . . . . . . . . . . . . . . . . . . . . . 1 . Zone Layout 9 | . . . . . . . . . . . . . . . . . . . . . . . 3 . . . . . . 2 1 2 1 Fabricator Hacks 7 | . . . . . . . . . . . . 3 . 2 . . . . . . . . . . . . . . 2 . . . . Load Schematic 4 | . . . . . . . . . . . . 2 . 1 . . . . . . . . . . . . . . 1 . . . . Build 3 | . . . . . . . . . . . . 1 . 1 . . . . . . . . . . . . . . 1 . . . . Repair Station Hacks 10 | . . . . . . . . . . . . . . . . . . . . . . . . 8 . . . . . 2 . . . Scan Component 5 | . . . . . . . . . . . . . . . . . . . . . . . . 4 . . . . . 1 . . . Repair 5 | . . . . . . . . . . . . . . . . . . . . . . . . 4 . . . . . 1 . . . Recycling Unit Hacks 4 | . . . . . . . . . . . . . . . . . . . . . . . . . . . . . . . 4 . . Process 1 | . . . . . . . . . . . . . . . . . . . . . . . . . . . . . . . 1 . . Retrieve Matter 3 | . . . . . . . . . . . . . . . . . . . . . . . . . . . . . . . 3 . . Scanalyzer 10 | . . . . . . . . . . . . . . 6 . . . . . . . . . . . . . . . . 4 . . Insert Component 5 | . . . . . . . . . . . . . . 3 . . . . . . . . . . . . . . . . 2 . . Analyze 5 | . . . . . . . . . . . . . . 3 . . . . . . . . . . . . . . . . 2 . . Garrison Access Hacks 6 | . . . . . . . . . . . . 1 . 1 . . . . . . . . . . . . . . 2 . 1 . 1 Unlock Access 1 | . . . . . . . . . . . . 1 . . . . . . . . . . . . . . . . . . . . . Seal Access 5 | . . . . . . . . . . . . . . 1 . . . . . . . . . . . . . . 2 . 1 . 1 Unauthorized Hacks 35 | . 4 . . . 1 4 4 . . . . 1 . 1 . . . . 1 2 . . 2 . . . . . 3 7 1 2 2 Terminals 26 | . 2 . . . 1 2 1 . . . . 1 . 1 . . . . 1 2 . . 2 . . . . . 1 7 1 2 2 Track 5 | . 1 . . . . 1 . . . . . . . . . . . . . . . . . . . . . . . 3 . . . Assimilate 1 | . . . . . . . . . . . . . . . . . . . . . . . . . . . . . . 1 . . . Botnet 16 | . . . . . . 1 1 . . . . 1 . 1 . . . . 1 2 . . 2 . . . . . 1 2 1 1 2 Operators 4 | . 1 . . . 1 . . . . . . . . . . . . . . . . . . . . . . . . 1 . 1 . Fabricators 2 | . . . . . . . . . . . . . . . . . . . . . . . . . . . . . 2 . . . . Prioritize 1 | . . . . . . . . . . . . . . . . . . . . . . . . . . . . . 1 . . . . Siphon 1 | . . . . . . . . . . . . . . . . . . . . . . . . . . . . . 1 . . . . Repair Stations . | . . . . . . . . . . . . . . . . . . . . . . . . . . . . . . . . . . Recycling Units 7 | . 2 . . . . 2 3 . . . . . . . . . . . . . . . . . . . . . . . . . . Tunnel 7 | . 2 . . . . 2 3 . . . . . . . . . . . . . . . . . . . . . . . . . . Scanalyzers . | . . . . . . . . . . . . . . . . . . . . . . . . . . . . . . . . . . Garrison Access . | . . . . . . . . . . . . . . . . . . . . . . . . . . . . . . . . . . Data Cores Recovered . | . . . . . . . . . . . . . . . . . . . . . . . . . . . . . . . . . . Used . | . . . . . . . . . . . . . . . . . . . . . . . . . . . . . . . . . . Hacking Detections 70 | . 3 . . . 2 6 11 . . . . 3 . 9 . . . . 2 4 1 . 8 2 . . . . 1 6 6 3 3 Full Trace Events 12 | . 1 . . . 1 1 1 . . . . 2 . 2 . . . . . 1 . . 2 . . . . . . . . . 1 Feedback Events 1 | . . . . . . . . . . . . . . 1 . . . . . . . . . . . . . . . . . . . Hackware Fried 1 | . . . . . . . . . . . . . . 1 . . . . . . . . . . . . . . . . . . . Feedback Blocked . | . . . . . . . . . . . . . . . . . . . . . . . . . . . . . . . . . . Robot Schematics Acquired 4 | . . . . . . . 1 . . 3 . . . . . . . . . . . . . . . . . . . . . . . Robots Built . | . . . . . . . . . . . . . . . . . . . . . . . . . . . . . . . . . . Matter . | . . . . . . . . . . . . . . . . . . . . . . . . . . . . . . . . . . Time . | . . . . . . . . . . . . . . . . . . . . . . . . . . . . . . . . . . Total Robot Build Rating . | . . . . . . . . . . . . . . . . . . . . . . . . . . . . . . . . . . Part Schematics Acquired 23 | . 1 . . . . . . . . 8 . . . 3 . . 4 . . . . . 1 . . . . . . 3 2 1 . Parts Built 2 | . . . . . . . . . . . . . . 1 . . . . . . . . . . . . . . 1 . . . . Matter 804 | . . . . . . . . . . . . 318 . 318 . . . . . . . . . . . . . . 168 . . . . Time 422 | . . . . . . . . . . . . 169 . 169 . . . . . . . . . . . . . . 84 . . . . Total Part Build Rating 10 | . . . . . . . . . . . . . . 6 . . . . . . . . . . . . . . 4 . . . . Parts Repaired 5 | . . . . . . . . . . . . . . . . . . . . . . . . 4 . . . . . 1 . . . Time 123 | . . . . . . . . . . . . . . . . . . . . . . . . 101 . . . . . 22 . . . Parts Recycled . | . . . . . . . . . . . . . . . . . . . . . . . . . . . . . . . . . . Recycled Matter 4 | . . . . . . . . . . . . . . . . . . . . . . . . . . . . . . . 4 . . Retrieved Matter . | . . . . . . . . . . . . . . . . . . . . . . . . . . . . . . . . . . Retrieved Components . | . . . . . . . . . . . . . . . . . . . . . . . . . . . . . . . . . . Parts Scanalyzed 5 | . . . . . . . . . . . . . . 3 . . . . . . . . . . . . . . . . 2 . . Part Schematics Acquired 5 | . . . . . . . . . . . . . . 3 . . . . . . . . . . . . . . . . 2 . . Parts Damaged 1 | . . . . . . . . . . . . . . 1 . . . . . . . . . . . . . . . . . . . Bothacking | -11 -10 -10 -10 -9 -8 -8 -7 -7 -7 -7 -6 -6 -6 -6 -6 -6 -6 -5 -5 -5 -5 -5 -5 -4 -4 -4 -4 -3 -3 -3 -2 -2 -2 ------------ Run | Scr Mat Min Exi Min Mat Sto Fac Low Low Dat Pro Fac Gar Fac Low Low Zio Pro Fac Ext Cet Arc Hub Fac Upp Upp War Pro Res Tes Res Qua Sec Used RIF Installer 1 | . . . . . . . . . . . . . 1 . . . . . . . . . . . . . . . . . . . . Robots Hacked . | . . . . . . . . . . . . . . . . . . . . . . . . . . . . . . . . . . Non-combat . | . . . . . . . . . . . . . . . . . . . . . . . . . . . . . . . . . . Combat . | . . . . . . . . . . . . . . . . . . . . . . . . . . . . . . . . . . Robot Hacks Applied . | . . . . . . . . . . . . . . . . . . . . . . . . . . . . . . . . . . Relay Couplers Released 14 | . . . . . . 3 . . . . . . 7 . . . . . . . . . . . . . . . . . 4 . . Machine Destruction 10 | . . . . . . 3 . . . . . . 7 . . . . . . . . . . . . . . . . . . . . Programmers 4 | . . . . . . . . . . . . . . . . . . . . . . . . . . . . . . . 4 . . Attached 1 | . . . . . . . . . . . . . . . . . . . . . . . . . . . . . . . 1 . . Robots Rewired 15 | . . . . . . . . . . . . . . 1 1 . . 1 . 12 . . . . . . . . . . . . . Allies Hacked . | . . . . . . . . . . . . . . . . . . . . . . . . . . . . . . . . . . Hacks Repelled . | . . . . . . . . . . . . . . . . . . . . . . . . . . . . . . . . . . Allies | -11 -10 -10 -10 -9 -8 -8 -7 -7 -7 -7 -6 -6 -6 -6 -6 -6 -6 -5 -5 -5 -5 -5 -5 -4 -4 -4 -4 -3 -3 -3 -2 -2 -2 -------- Run | Scr Mat Min Exi Min Mat Sto Fac Low Low Dat Pro Fac Gar Fac Low Low Zio Pro Fac Ext Cet Arc Hub Fac Upp Upp War Pro Res Tes Res Qua Sec Total Allies 49 | . . 1 . . . . . . . . . . . 1 1 . 5 1 . 29 5 . . . . . . . . . . . 6 Largest Group 16 | . . 1 . . . . . . . . . . . 1 1 . 5 5 3 16 13 7 6 . . . . . . . . . 6 Highest-Rated Group 635 | . . 31 . . . . . . . . . . . 32 32 . 281 281 218 550 635 635 494 . . . . . . . . . 84 Highest-Rated Ally 156 | . . 31 . . . . . . . . . . . 32 32 . 94 94 94 156 134 134 94 . . . . . . . . . 15 Total Orders 4 | . . . . . . . . . . . . . . . . . . . . . . . 4 . . . . . . . . . . EXPLORE 4 | . . . . . . . . . . . . . . . . . . . . . . . 4 . . . . . . . . . . Ally Attacks 381 | . . . . . . . . . . . . . . . 2 . . 72 10 163 45 17 21 . . . . . . . . . 51 Total Damage 9682 | . . . . . . . . . . . . . . . 138 . . 1918 532 3845 991 621 731 . . . . . . . . . 906 Kills 58 | . . . . . . . . . . . . . . . 1 . . 11 4 22 7 3 6 . . . . . . . . . 4 Allies Corrupted 2 | . . . . . . . . . . . . . . 1 . . . . . . . . 1 . . . . . . . . . . Allies Melted . | . . . . . . . . . . . . . . . . . . . . . . . . . . . . . . . . . . Intel | -11 -10 -10 -10 -9 -8 -8 -7 -7 -7 -7 -6 -6 -6 -6 -6 -6 -6 -5 -5 -5 -5 -5 -5 -4 -4 -4 -4 -3 -3 -3 -2 -2 -2 ------- Run | Scr Mat Min Exi Min Mat Sto Fac Low Low Dat Pro Fac Gar Fac Low Low Zio Pro Fac Ext Cet Arc Hub Fac Upp Upp War Pro Res Tes Res Qua Sec Robot Analysis Total 3 | . 1 . . . . . . . . . . . . . . . . . . . . . . . . . . . . . 1 . 1 Derelict Logs Recovered 10 | . . 2 . 1 . . . . 1 . . . . . 1 1 1 . . . . . . . 1 2 . . . . . . . Drone Launches 4 | . . . . . . . . . . . . . . . . . . . . . . . 4 . . . . . . . . . . Drone Recoveries 2 | . . . . . . . . . . . . . . . . . . . . . . . 2 . . . . . . . . . . Exploration | -11 -10 -10 -10 -9 -8 -8 -7 -7 -7 -7 -6 -6 -6 -6 -6 -6 -6 -5 -5 -5 -5 -5 -5 -4 -4 -4 -4 -3 -3 -3 -2 -2 -2 ------------- Run | Scr Mat Min Exi Min Mat Sto Fac Low Low Dat Pro Fac Gar Fac Low Low Zio Pro Fac Ext Cet Arc Hub Fac Upp Upp War Pro Res Tes Res Qua Sec Turns Passed 41497 | 122 962 990 348 526 1845 3219 2543 985 1053 658 730 846 1137 1737 874 908 372 866 866 1680 506 1226 1402 1257 627 574 67 3082 1409 2120 2328 1121 2511 Spaces Moved 16140 | 66 443 550 217 186 495 949 1203 465 472 209 401 367 520 770 438 386 168 342 321 774 183 104 682 460 308 287 38 474 568 896 979 546 873 Core 27 | 11 . . . . . . . . . 9 . . . . . . . . . . . . 1 . . . . . . . . . 6 Treads 12943 | 55 443 550 217 186 495 949 1203 465 472 132 . . . . . 93 168 342 168 634 183 104 681 445 308 287 38 474 568 896 979 546 862 Legs 3136 | . . . . . . . . . . 49 401 367 520 770 438 293 . . 153 140 . . . . . . . . . . . . 5 Wheels 15 | . . . . . . . . . . . . . . . . . . . . . . . . 15 . . . . . . . . . Hover 19 | . . . . . . . . . . 19 . . . . . . . . . . . . . . . . . . . . . . . Flight . | . . . . . . . . . . . . . . . . . . . . . . . . . . . . . . . . . . Fastest Speed 50 | 50 160 160 160 160 160 180 180 200 220 150 150 150 180 180 180 180 220 220 180 180 160 160 160 160 160 180 180 180 152 145 165 165 50 Average Speed 181 | 146 160 160 160 180 174 180 189 202 220 280 150 160 181 180 180 209 220 237 211 182 163 160 164 179 179 180 180 188 178 168 174 171 179 Slowest Speed 2100 | 160 160 180 160 200 180 200 260 220 220 1950 150 360 210 180 180 300 220 240 300 360 200 160 2100 240 180 180 180 200 200 177 210 177 240 Overloaded Moves . | . . . . . . . . . . . . . . . . . . . . . . . . . . . . . . . . . . Propulsion Burnouts . | . . . . . . . . . . . . . . . . . . . . . . . . . . . . . . . . . . Robots Hopped . | . . . . . . . . . . . . . . . . . . . . . . . . . . . . . . . . . . Cave-ins Triggered 1 | . . . . . . . . . . . . . . . . . . . . . . . 1 . . . . . . . . . . Exploration Rate (%) 50 | 4 73 99 63 45 36 91 35 63 69 77 63 13 60 22 56 62 12 60 11 85 61 75 73 12 61 49 8 71 16 83 25 61 36 Regions Visited 33 Branch Regions 23 Pre-discovered Areas 12 | . 2 . 1 1 . 2 3 . 1 1 . . . . . . . . . . . . . . . 1 . . . . . . . Known Exits Taken 28 | . 1 . . . 1 1 1 1 1 1 1 1 . 1 1 1 1 1 1 1 1 1 1 1 1 1 1 1 1 1 1 1 . Unknown Exits Taken 4 | 1 . 1 1 1 . . . . . . . . . . . . . . . . . . . . . . . . . . . . . Scrap Searched 23 | . . 1 . 1 . . . 9 . . 1 . . . 1 . . 2 . . . . . . 2 1 . 5 . . . . . Spaces Dug 106 | . . . . . . . . . . . . . . 11 . 6 . . 8 . . . 16 . . . . . 6 10 38 3 8 Terrain Destroyed 1880 | . 19 65 . 5 4 53 71 2 . 13 9 5 123 25 31 112 . 111 55 8 20 6 387 135 2 1 . 41 26 133 134 26 258 Melee 25 | . . . . . . . . . . . . . . 8 . . . . . . . . . . . . . . 6 6 . . 5 Projectile 335 | . . . . . . 1 . 2 . . 3 4 . 3 . . . . 15 8 3 6 67 46 2 1 . 5 10 21 99 26 13 AOE 1520 | . 19 65 . 5 4 52 71 . . 13 6 1 123 14 31 112 . 111 40 . 17 . 320 89 . . . 36 10 106 35 . 240 Terrain Rammed . | . . . . . . . . . . . . . . . . . . . . . . . . . . . . . . . . . . Walls Destroyed . | . . . . . . . . . . . . . . . . . . . . . . . . . . . . . . . . . . Machines Disabled . | . . . . . . . . . . . . . . . . . . . . . . . . . . . . . . . . . . Actions | -11 -10 -10 -10 -9 -8 -8 -7 -7 -7 -7 -6 -6 -6 -6 -6 -6 -6 -5 -5 -5 -5 -5 -5 -4 -4 -4 -4 -3 -3 -3 -2 -2 -2 --------- Run | Scr Mat Min Exi Min Mat Sto Fac Low Low Dat Pro Fac Gar Fac Low Low Zio Pro Fac Ext Cet Arc Hub Fac Upp Upp War Pro Res Tes Res Qua Sec Total 25959 | 87 639 615 219 333 1362 2243 1355 500 481 281 466 512 623 1012 490 441 172 384 459 967 373 1143 858 756 374 325 37 2651 861 1389 1447 666 1438 Wait 6888 | 6 142 13 . 104 760 1062 20 1 . 13 22 30 6 101 4 15 1 11 59 38 149 1019 65 157 47 18 . 2128 136 313 263 41 144 Move 16106 | 65 442 549 216 185 494 948 1202 464 471 208 400 366 518 769 437 385 167 341 320 773 182 103 681 459 307 286 37 473 567 895 978 545 873 Hop . | . . . . . . . . . . . . . . . . . . . . . . . . . . . . . . . . . . Pick Up 266 | 8 10 6 1 4 19 25 10 16 . 7 1 12 7 12 1 . 2 1 7 6 9 1 5 12 11 4 . 4 12 9 15 5 24 Fast Attach 262 | 5 . 2 . 4 7 19 13 . 2 6 . 7 7 7 6 . . 6 14 14 2 4 6 9 . . . 8 20 20 20 6 48 Attach 192 | 2 . 6 . 1 5 7 7 3 1 5 3 11 4 7 . 2 . 2 4 . 2 . 3 19 2 1 . 4 10 20 9 5 47 Detach 61 | . . 2 . . . 1 1 . . 4 1 . . 1 . . . . 2 . . . . 7 . . . 1 4 12 1 1 23 Swap 201 | . 5 . . 2 7 11 7 1 2 5 4 9 5 11 3 1 . . 8 10 4 2 9 9 3 2 . 1 15 22 13 15 15 Drop 321 | . 6 . 2 3 12 40 12 6 2 17 . 7 . 15 7 . 2 2 14 12 12 5 12 4 . 1 . 17 29 19 24 11 28 Fire 1251 | 1 34 33 . 29 57 129 80 9 3 4 35 55 62 25 10 23 . 11 29 30 12 9 75 80 4 . . 15 59 60 120 37 121 Melee 241 | . . . . . . . . . . 1 . . 9 44 15 15 . . 2 . 1 . . . . 13 . . 9 17 . . 115 Ram . | . . . . . . . . . . . . . . . . . . . . . . . . . . . . . . . . . . Kick 2 | . . . . . . . . . . . . 1 . 1 . . . . . . . . . . . . . . . . . . . Crush 16 | . . 4 . 1 1 1 1 . . . . . . . . . . . . . . . 2 . . . . . . 2 4 . . Escape Stasis 48 | . . . . . . . 2 . . . . 14 5 10 . . . . . 17 . . . . . . . . . . . . . Rewire 93 | . . . . . . . . . . . . . . 9 7 . . 10 . 67 . . . . . . . . . . . . . Trap 11 | . . . . . . . . . . 11 . . . . . . . . . . . . . . . . . . . . . . . Miscellaneous . | . . . . . . . . . . . . . . . . . . . . . . . . . . . . . . . . . . Route ------- -11/Scrapyard -10/Materials (discovered 4 exits: [*Mat x2] / *Min x2) -10/Mines (discovered 3 exits: [*Mat x2] / *Exi) -10/Exiles (discovered 2 exits: [*Min x2]) -9/Mines (discovered 2 exits: *Mat x2) -8/Materials (discovered 3 exits: *Fac x2 / *Sto) -8/Storage -7/Factory (discovered 3 exits: *Fac / *Low x2) -7/Lower Caves -7/Lower Caves -7/Data Miner -6/Proximity Caves -6/Factory -6/Garrison (discovered 2 exits: *Fac x2) -6/Factory (discovered 3 exits: *Fac / *Low x2) -6/Lower Caves -6/Lower Caves -6/Zion -5/Proximity Caves -5/Factory (discovered 2 exits: [*Upp] / *Ext) -5/Extension (discovered 2 exits: *Fac / *Cet) -5/Cetus (discovered 2 exits: *Fac / *Arc) -5/Archives (discovered 3 exits: *Fac / *Hub x2) -5/Hub_04(d) (discovered 4 exits: *Fac x4) -4/Factory (discovered 4 exits: *Res / *Upp x2 / Arm) -4/Upper Caves -4/Upper Caves (discovered 2 exits: *Res / *War) -4/Warlord -3/Proximity Caves -3/Research -3/Testing -2/Research (discovered 3 exits: *Acc / *Qua x2) -2/Quarantine -2/Section 7 History --------- Turn | Location | Event 11 | -11/Scrapyard | Discovered new exit (range 16) 123 | -11/Scrapyard | Entered Materials 306 | -10/Materials | Build established: Mutant 467 | -10/Materials | Identified exit to Mines 594 | -10/Materials | Discovered new exit (range 10) 846 | -10/Materials | Discovered new exit (range 8) 1085 | -10/Materials | Entered Mines 1360 | -10/Mines | Discovered new exit (range 11) 1443 | -10/Mines | Deemed a non-threat by the Exiles lab entrance 1478 | -10/Mines | Learned 2 Materials zone layouts 1571 | -10/Mines | Lost 5 parts (1p2n2w) 1765 | -10/Mines | Received a Mining Laser from a helpful Derelict 1775 | -10/Mines | Discovered new exit (range 9) 2067 | -10/Mines | Discovered new exit (range 5) 2075 | -10/Mines | Entered Exiles 2099 | -10/Exiles | Discovered new exit (range 15) 2119 | -10/Exiles | Met 8R-AWN 2141 | -10/Exiles | Met EX-HEX 2221 | -10/Exiles | Met EX-DEC 2259 | -10/Exiles | Visited The Gauntlet 2341 | -10/Exiles | Learned location of Zion (-6) 2405 | -10/Exiles | Discovered new exit (range 14) 2423 | -10/Exiles | Entered Mines 2436 | -9/Mines | Core integrity fell below 50% 2530 | -9/Mines | Core integrity fell below 20% 2534 | -9/Mines | Discovered new exit (range 10) 2554 | -9/Mines | Joined a pair of Derelicts in attacking an 0b10 outpost 2608 | -9/Mines | Discovered new exit (range 11) 2841 | -9/Mines | Build established: Scavenger-Mutant 2949 | -9/Mines | Entered Materials 2949 | -8/Materials | Evolved 4 slots: Propulsion x1, Utility x2, Weapon x1 2950 | -8/Materials | Identified exit to Storage 2951 | -8/Materials | Identified exit to Factory 3576 | -8/Materials | Build established: Hauler-Tank 3760 | -8/Materials | Discovered exit to Factory (range 11) 4794 | -8/Materials | Entered Storage 4817 | -8/Storage | Garrison activated, responded to threat 5245 | -8/Storage | Core integrity fell below 50% 5286 | -8/Storage | Lost 3 parts (1p1u1w) 5419 | -8/Storage | Found Prototype Protection 5419 | -8/Storage | Identified Lgt. Regenerative Plating 5424 | -8/Storage | Found Lgt. Regenerative Plating 5427 | -8/Storage | Found Lgt. Regenerative Plating 5429 | -8/Storage | Found Lgt. Regenerative Plating 5432 | -8/Storage | Found Lgt. Regenerative Plating 5436 | -8/Storage | Found Lgt. Regenerative Plating 5594 | -8/Storage | First assault squad dispatched 5680 | -8/Storage | Discovered exit to Factory (range 5) 6501 | -8/Storage | Build established: Hauler-Mutant 8013 | -8/Storage | Entered Factory 8013 | -7/Factory | Evolved 2 slots: Utility x2 9160 | -7/Factory | Build established: Hauler-Skirmisher 9335 | -7/Factory | Discovered new exit (range 16) 9454 | -7/Factory | Identified exit to Factory 9613 | -7/Factory | First assault squad dispatched 9620 | -7/Factory | Identified exit to Lower Caves 9661 | -7/Factory | Build established: Hauler-Mutant 9964 | -7/Factory | Build established: Hauler-Skirmisher 10423 | -7/Factory | Build established: Scavenger-Skirmisher 10556 | -7/Factory | Entered Lower Caves 10668 | -7/Lower Caves | Learned Extension security intel 11030 | -7/Lower Caves | Build established: Hauler-Skirmisher 11495 | -7/Lower Caves | Discovered new exit (range 12) 11519 | -7/Lower Caves | Identified exit to Lower Caves 11541 | -7/Lower Caves | Entered another Lower Caves area 12262 | -7/Lower Caves | Attracted the attention of an 0b10 checkpoint 12348 | -7/Lower Caves | Discovered new exit (range 13) 12374 | -7/Lower Caves | Identified exit to Data Miner 12379 | -7/Lower Caves | Encountered a Warlord checkpoint 12594 | -7/Lower Caves | Entered Data Miner 12594 | -7/Data Miner | Discovered new exit (range 6) 12636 | -7/Data Miner | Met Data Miner 12682 | -7/Data Miner | Learned location of Section 7 (-2) 12682 | -7/Data Miner | Acquired the access code to Warlord's prototype stash 12722 | -7/Data Miner | Received God Mode back door access code from Data Miner 12893 | -7/Data Miner | Destroyed Data Miner 12898 | -7/Data Miner | Data Conduit disabled 13034 | -7/Data Miner | Found Prototype Hackware 13037 | -7/Data Miner | Found Prototype Hackware 13041 | -7/Data Miner | Found Prototype Hackware 13121 | -7/Data Miner | Build established: Hauler-Mutant 13250 | -7/Data Miner | Identified exit to Proximity Caves 13252 | -7/Data Miner | Entered Proximity Caves 13399 | -6/Proximity Caves | Attracted the attention of an 0b10 checkpoint 13629 | -6/Proximity Caves | Core integrity fell below 50% 13695 | -6/Proximity Caves | Build established: Scavenger-Mutant 13973 | -6/Proximity Caves | Discovered exit to Factory (range 6) 13982 | -6/Proximity Caves | Entered Factory 13982 | -6/Factory | Evolved 2 slots: Utility x2 14327 | -6/Factory | Destroyed 7 combat bots 14330 | -6/Factory | Lost 6 parts (2n1u3w) 14388 | -6/Factory | System corruption reached 10% 14790 | -6/Factory | Identified exit to Garrison 14828 | -6/Factory | Entered Garrison 15052 | -6/Garrison | Build established: Hauler-Mutant 15076 | -6/Garrison | Triggered checkpoint 15082 | -6/Garrison | Triggered checkpoint 15140 | -6/Garrison | Lost 4 parts (1p1n2w) 15142 | -6/Garrison | Destroyed 10 combat bots 15348 | -6/Garrison | Discovered new exit (range 12) 15501 | -6/Garrison | Discovered new exit (range 13) 15523 | -6/Garrison | Identified exit to Factory 15537 | -6/Garrison | Installed Relay Interface Framework 15610 | -6/Garrison | Triggered checkpoint 15661 | -6/Garrison | Garrison Relay disabled 15836 | -6/Garrison | Triggered checkpoint 15881 | -6/Garrison | Garrison Relay disabled 15965 | -6/Garrison | Entered Factory 16551 | -6/Factory | Core integrity fell below 50% 16856 | -6/Factory | Discovered new exit (range 4) 16860 | -6/Factory | Identified exit to Factory 16920 | -6/Factory | Identified exit to Lower Caves 17299 | -6/Factory | Hacking Suite fried by hacking feedback 17365 | -6/Factory | First assault squad dispatched 17462 | -6/Factory | Local fabrication network quarantined 17587 | -6/Factory | Fabricated Kinetic Spear (x1) 17702 | -6/Factory | Entered Lower Caves 17728 | -6/Lower Caves | Attracted the attention of an 0b10 outpost 17911 | -6/Lower Caves | Attacked by a delusional Derelict stockpiling parts 18123 | -6/Lower Caves | Encountered a Warlord checkpoint 18523 | -6/Lower Caves | Learned Factory security intel 18569 | -6/Lower Caves | Discovered new exit (range 5) 18575 | -6/Lower Caves | Identified exit to Lower Caves 18576 | -6/Lower Caves | Entered another Lower Caves area 18736 | -6/Lower Caves | Encountered a Warlord checkpoint 18876 | -6/Lower Caves | Attracted the attention of an 0b10 checkpoint 18895 | -6/Lower Caves | Core integrity fell below 20% 19192 | -6/Lower Caves | Destroyed 7 combat bots 19385 | -6/Lower Caves | Learned location of 1 exit from Factory 19466 | -6/Lower Caves | Discovered new exit (range 9) 19482 | -6/Lower Caves | Identified exit to Zion 19484 | -6/Lower Caves | Entered Zion 19580 | -6/Zion | Gained Derelict followers 19620 | -6/Zion | Learned Factory garrison access intel 19672 | -6/Zion | Discovered new exit (range 9) 19736 | -6/Zion | Given A8's code to call for help 19819 | -6/Zion | Enhanced Grunt warped into view, answering call for help 19825 | -6/Zion | Enhanced Grunt warped into view, answering call for help 19849 | -6/Zion | Identified exit to Proximity Caves 19856 | -6/Zion | Entered Proximity Caves 19856 | -5/Proximity Caves | Accompanied by 5 allies 19926 | -5/Proximity Caves | Spotted B-75 Beast 19945 | -5/Proximity Caves | Allies destroyed B-75 Beast 20591 | -5/Proximity Caves | Attracted the attention of an 0b10 outpost 20643 | -5/Proximity Caves | Discovered exit to Factory (range 13) 20722 | -5/Proximity Caves | Entered Factory 20722 | -5/Factory | Accompanied by 3 allies 20722 | -5/Factory | Evolved 2 slots: Propulsion x1, Utility x1 20723 | -5/Factory | Identified exit to Extension 20725 | -5/Factory | Loaded intel: 4 garrison access locations 20974 | -5/Factory | Identified Ghost Barrier 21133 | -5/Factory | Discovered new exit (range 8) 21551 | -5/Factory | Garrison activated, responded to threat 21588 | -5/Factory | Entered Extension 21757 | -5/Extension | Rescued A7 21834 | -5/Extension | Rescued a captive Derelict 21838 | -5/Extension | Rescued a captive Derelict 21958 | -5/Extension | Build established: Scavenger-Gunner 21988 | -5/Extension | Rescued a captive Derelict 21990 | -5/Extension | Rescued a captive Derelict 22045 | -5/Extension | Rescued a captive Derelict 22045 | -5/Extension | Rescued a captive Derelict 22071 | -5/Extension | Rescued a captive Derelict 22072 | -5/Extension | Rescued a captive Derelict 22271 | -5/Extension | Build established: Scavenger-Skirmisher 22497 | -5/Extension | Spotted B-75 Beast 22504 | -5/Extension | Allies destroyed B-75 Beast 22528 | -5/Extension | Spotted B-75 Beast 22533 | -5/Extension | Allies destroyed B-75 Beast 22675 | -5/Extension | Build established: Scavenger-Gunner 22788 | -5/Extension | Rescued a captive Derelict 22792 | -5/Extension | Rescued a captive Derelict 22811 | -5/Extension | Rescued a captive Derelict 22937 | -5/Extension | Rescued a captive Derelict 22938 | -5/Extension | Rescued a captive Derelict 23001 | -5/Extension | Rescued a captive Derelict 23007 | -5/Extension | Rescued a captive Derelict 23141 | -5/Extension | Rescued a captive Derelict 23216 | -5/Extension | Discovered new exit (range 10) 23218 | -5/Extension | Discovered new exit (range 6) 23246 | -5/Extension | Identified exit to Factory 23259 | -5/Extension | Identified exit to Cetus 23268 | -5/Extension | Entered Cetus 23268 | -5/Cetus | Accompanied by 13 allies (A7) 23273 | -5/Cetus | Acquired a Cetus Manufacturing Module code from A7 23294 | -5/Cetus | Spotted Cetus Guard 23294 | -5/Cetus | Spotted Cetus Guard 23296 | -5/Cetus | Spotted Cetus Guard 23300 | -5/Cetus | Spotted Cetus Guard 23301 | -5/Cetus | Allies destroyed Cetus Guard 23306 | -5/Cetus | Destroyed Cetus Guard 23308 | -5/Cetus | Allies destroyed Cetus Guard 23311 | -5/Cetus | Destroyed Cetus Guard 23381 | -5/Cetus | Build established: Scavenger-Mutant 23410 | -5/Cetus | Started Cetus Manufacturing Module 23435 | -5/Cetus | Manufactured an Enhanced Grunt 23440 | -5/Cetus | Discovered new exit (range 16) 23460 | -5/Cetus | Manufactured an Enhanced Grunt 23469 | -5/Cetus | Spotted Cetus Guard 23470 | -5/Cetus | Spotted Cetus Guard 23475 | -5/Cetus | Spotted Cetus Guard 23477 | -5/Cetus | Destroyed Cetus Guard 23482 | -5/Cetus | Spotted Cetus Guard 23484 | -5/Cetus | Allies destroyed Cetus Guard 23485 | -5/Cetus | Manufactured an Enhanced Grunt 23485 | -5/Cetus | Allies destroyed Cetus Guard 23488 | -5/Cetus | Destroyed Cetus Guard 23494 | -5/Cetus | Discovered exit to Factory (range 15) 23503 | -5/Cetus | Met Revision 17 23510 | -5/Cetus | Manufactured an Enhanced Grunt 23535 | -5/Cetus | Manufactured an Enhanced Grunt 23543 | -5/Cetus | Cetus Manufacturing Module disabled 23551 | -5/Cetus | Destroyed Revision 17 23624 | -5/Cetus | Identified exit to Archives 23774 | -5/Cetus | Entered Archives 23774 | -5/Archives | Accompanied by 7 allies (A7) 24050 | -5/Archives | Discovered new exit (range 16) 24068 | -5/Archives | Discovered exit to Factory (range 15) 24079 | -5/Archives | Build established: Scavenger-Gunner 24087 | -5/Archives | Unable to access archive contents 24103 | -5/Archives | Discovered new exit (range 15) 24124 | -5/Archives | Identified exit to Hub_04(d) 25000 | -5/Archives | Entered Hub_04(d) 25000 | -5/Hub_04(d) | Accompanied by 6 allies 25136 | -5/Hub_04(d) | Discovered exit to Factory (range 24) 25191 | -5/Hub_04(d) | Discovered exit to Factory (range 7) 25244 | -5/Hub_04(d) | Found Launcher Loader 25331 | -5/Hub_04(d) | Spotted B-75 Beast 25340 | -5/Hub_04(d) | Allies destroyed B-75 Beast 26354 | -5/Hub_04(d) | Network Hub disabled 26356 | -5/Hub_04(d) | Crushed by falling debris 26361 | -5/Hub_04(d) | Spotted Lightning 26361 | -5/Hub_04(d) | Spotted Lightning 26363 | -5/Hub_04(d) | Spotted Lightning 26363 | -5/Hub_04(d) | Spotted Lightning 26365 | -5/Hub_04(d) | Spotted Lightning 26372 | -5/Hub_04(d) | Spotted Lightning 26373 | -5/Hub_04(d) | Spotted Lightning 26374 | -5/Hub_04(d) | Spotted Lightning 26374 | -5/Hub_04(d) | Spotted Lightning 26376 | -5/Hub_04(d) | System corruption reached 10% 26399 | -5/Hub_04(d) | Destroyed Lightning 26399 | -5/Hub_04(d) | Network Hub disabled 26401 | -5/Hub_04(d) | Disrupted transfer network 26402 | -5/Hub_04(d) | Entered Factory 26402 | -4/Factory | Evolved 2 slots: Utility x2 26432 | -4/Factory | Lost 5 parts (1p2n2w) 26521 | -4/Factory | Spotted B-86 Titan 26588 | -4/Factory | Destroyed B-86 Titan 26665 | -4/Factory | Found Hvy. Reflective Plating 26783 | -4/Factory | Identified System Mapper 26784 | -4/Factory | Identified exit to Upper Caves 26784 | -4/Factory | Identified exit to Armory 27120 | -4/Factory | Repaired Broken Imp. KE Penetrator 27142 | -4/Factory | Repaired Hcp. Storage Unit 27157 | -4/Factory | Repaired Hcp. Storage Unit 27171 | -4/Factory | Repaired Hcp. Storage Unit 27181 | -4/Factory | First assault squad dispatched 27300 | -4/Factory | Destroyed 11 combat bots 27327 | -4/Factory | Lost 4 parts (1p1n1u1w) 27391 | -4/Factory | Discovered new exit (range 16) 27414 | -4/Factory | Identified exit to Research 27659 | -4/Factory | Entered Upper Caves 27685 | -4/Upper Caves | Lost 4 parts (1p3w) 27869 | -4/Upper Caves | Identified exit to Upper Caves 27886 | -4/Upper Caves | Encountered a Warlord checkpoint 27930 | -4/Upper Caves | Build established: Hacker-Mutant 28286 | -4/Upper Caves | Entered another Upper Caves area 28331 | -4/Upper Caves | Discovered exit to Research (range 12) 28696 | -4/Upper Caves | Identified exit to Warlord 28804 | -4/Upper Caves | Learned location of Armory (-4) 28860 | -4/Upper Caves | Entered Warlord 28907 | -4/Warlord | Discovered new exit (range 12) 28923 | -4/Warlord | Identified exit to Proximity Caves 28927 | -4/Warlord | Entered Proximity Caves 29473 | -3/Proximity Caves | Lost 3 parts (1p1n1u) 29758 | -3/Proximity Caves | Discovered exit to Research (range 8) 32009 | -3/Proximity Caves | Entered Research 32009 | -3/Research | Evolved 2 slots: Utility x2 32416 | -3/Research | Found Antimissile System 32455 | -3/Research | Build established: Hacker-Gunner 32644 | -3/Research | Fabricated Lrn. Sensor Array? 32924 | -3/Research | Found Fusion Bomb Launcher 32944 | -3/Research | Build established: Hacker-Mutant 33120 | -3/Research | Discovered new exit (range 15) 33199 | -3/Research | Identified exit to Testing 33321 | -3/Research | Found Prototype Hackware 33321 | -3/Research | Identified Exp. System Shield 33390 | -3/Research | Build established: Hacker-Gunner 33418 | -3/Research | Entered Testing 33751 | -3/Testing | System corruption reached 10% 33775 | -3/Testing | Lost 3 parts (2u1w) 33854 | -3/Testing | Found Prototype Energy Cannon 33854 | -3/Testing | Identified Hpw. Disruptor Cannon 34362 | -3/Testing | Found Prototype Processor 34392 | -3/Testing | Identified Spectral Analyzer 34541 | -3/Testing | Found Prototype Hackware 34544 | -3/Testing | Found Prototype Launcher 34558 | -3/Testing | Found Prototype Energy Cannon 34558 | -3/Testing | Identified Null Cannon 34696 | -3/Testing | Repaired Adv. Heavy Treads 34737 | -3/Testing | Found Quantum Capacitor 34749 | -3/Testing | Spotted Striker 34759 | -3/Testing | Spotted Striker 34761 | -3/Testing | Identified exit to Research 34813 | -3/Testing | Build established: Hacker-Skirmisher 35357 | -3/Testing | System corruption reached 30% 35538 | -3/Testing | Entered Research 35538 | -2/Research | Evolved 2 slots: Utility x1, Weapon x1 35845 | -2/Research | Build established: Hacker-Mutant 35996 | -2/Research | Identified exit to Quarantine 36355 | -2/Research | System corruption reached 10% 36391 | -2/Research | Discovered new exit (range 23) 36430 | -2/Research | Identified exit to Access 36535 | -2/Research | Build established: Hacker-Gunner 36707 | -2/Research | Found Prototype Launcher 36707 | -2/Research | Identified Adv. Micro-nuke Launcher (x2) 36969 | -2/Research | Build established: Hacker-Mutant 37866 | -2/Research | Entered Quarantine 37935 | -2/Quarantine | Found Alien Artifact 38124 | -2/Quarantine | Identified Quantum Router 38314 | -2/Quarantine | Met incapacitated Sigix Warrior 38314 | -2/Quarantine | Lockdown squad dispatched 38459 | -2/Quarantine | Discovered exit to Access (range 24) 38728 | -2/Quarantine | Build established: Wizard-Skirmisher 38759 | -2/Quarantine | Cryocooling Duct disabled 38774 | -2/Quarantine | Ambient heat levels rising (+20) 38774 | -2/Quarantine | Non-combat units ordered to evacuate 38807 | -2/Quarantine | Found Alien Artifact 38807 | -2/Quarantine | Identified Core Reset Matrix 38807 | -2/Quarantine | Identified Subatomic Replicator 38807 | -2/Quarantine | Used Core Reset Matrix 38811 | -2/Quarantine | Sensed 5 artifacts in vicinity 38864 | -2/Quarantine | Spotted Fortress 38978 | -2/Quarantine | Discovered new exit (range 6) 38985 | -2/Quarantine | Identified exit to Section 7 38987 | -2/Quarantine | Entered Section 7 38988 | -2/Section 7 | Sensed 23 artifacts in vicinity 38991 | -2/Section 7 | Spotted S7 Guard 39013 | -2/Section 7 | Destroyed S7 Guard 39016 | -2/Section 7 | Spotted S7 Guard 39034 | -2/Section 7 | Destroyed S7 Guard 39054 | -2/Section 7 | Found Core Membrane 39054 | -2/Section 7 | Installed Core Membrane, gained immunity to corruption 39058 | -2/Section 7 | Lost 4 parts (1p1u2w) 39064 | -2/Section 7 | Found Prototype Protection 39064 | -2/Section 7 | Identified Hvy. Regenerative Plating 39148 | -2/Section 7 | Found Unknown Piercing Weapon 39148 | -2/Section 7 | Identified Enh. Force Lance 39176 | -2/Section 7 | Found Prototype Launcher 39348 | -2/Section 7 | Identified Ragnarok Missile Launcher 39413 | -2/Section 7 | Found Integrated Heat Negator 39413 | -2/Section 7 | Installed Integrated Heat Negator, increased core heat dissipation (+40) 39624 | -2/Section 7 | Lost 8 parts (2p2n2u2w) 39633 | -2/Section 7 | Destroyed 13 combat bots 39867 | -2/Section 7 | Found Integrated Dissipator 39867 | -2/Section 7 | Installed Integrated Dissipator, increased core heat dissipation (+20) 39987 | -2/Section 7 | First assault squad dispatched 40069 | -2/Section 7 | Lost 5 parts (1n2u2w) 40071 | -2/Section 7 | Spotted S7 Guard 40093 | -2/Section 7 | Destroyed S7 Guard 40182 | -2/Section 7 | Core integrity fell below 50% 40218 | -2/Section 7 | Used Subatomic Replicator to replicate Prototype Hackware 40219 | -2/Section 7 | Identified Exp. Hacking Suite 40364 | -2/Section 7 | Destroyed 8 combat bots 40395 | -2/Section 7 | Found Core Regenerator 40501 | -2/Section 7 | Found Integrated Dissipator 40501 | -2/Section 7 | Installed Integrated Dissipator, increased core heat dissipation (+20) 40569 | -2/Section 7 | Spotted B-90 Cyclops 40657 | -2/Section 7 | Found Core Reset Matrix 40721 | -2/Section 7 | Spotted B-90 Cyclops 40842 | -2/Section 7 | Build established: Scavenger-Assassin 40919 | -2/Section 7 | Emitted hypermatrix ping 40924 | -2/Section 7 | Assembled emerged from beneath the floor 41062 | -2/Section 7 | Lost 4 parts (1p2n1u) 41065 | -2/Section 7 | Destroyed 9 combat bots 41168 | -2/Section 7 | Found Prototype Processor 41168 | -2/Section 7 | Identified Exp. Target Analyzer 41324 | -2/Section 7 | Used Core Regenerator, restored core integrity (+362) 41384 | -2/Section 7 | Lost 5 parts (4u1w) 41437 | -2/Section 7 | Spotted Alpha 7 41438 | -2/Section 7 | Spotted S7 Guard 41440 | -2/Section 7 | Spotted Alpha 7 41488 | -2/Section 7 | Core integrity fell below 20% 41498 | -2/Section 7 | Destroyed by Alpha 7 with Multirail Last Messages --------------- 41488_ Identified Hvy. Disruptor Cannon. 41490_ Penetrated by Slug. 41490_ Slug penetrates Wall. 41490_ Knocked back. 41492_ Slug penetrates Wall. 41492_ Dropped Hcp. Storage Unit. 41493_ Dropped Lrg. Storage Unit. 41493_ Penetrated by Slug. 41493_ Hvy. Disruptor Cannon destroyed. 41493_ Dropped Quantum Capacitor. 41494_ Dropped Hvy. Disruptor Cannon. 41494_ Dropped Mic. Fission Core. 41495_ Penetrated by Slug. 41495_ Slug penetrates Wall. 41495_ Penetrated by Slug. 41495_ Slug penetrates Wall. 41496_ System corrupted: Heat flow error (+297). 41497_ Slug penetrates S7 Guard. 41497_ Slug penetrates Wall. 41498_ Penetrated by Slug. Map ----- +----------------------------------------------------+ | ?????????????????????????????????????????????????? | | ?????????????????????????????????????????????????? | | ?????????????????????????????????????????????????? | | ?????????????????????????????????????????????????? | | ?????????????????????????????????????????????????? | | ?????????????????????????????????????????????????? | | ?????????????????????????????????????????????????? | | ?????????????????????????????????????????????????? | | ?????????????????????????????????????????????????? | | ?????????????????????????????????????????????????? | | ?????????????????????????????????????????????????? | | ?????????????????????????????????????????????????? | | ?????????????????????????????????????????????????? | | ????????????????????????????????###??????????????? | | ???????????????????????????????"""#??????????????? | | ????? #????????????????????????"" #??????????????? | | ##??? #??????????????????????!?" #??????????????? | | ??? #???????????????????????? ???????????????? | | ### #???????????????????????? ?????????? ??? | | #??????##???????????????? ?????#??? ??? | | #???? ????????????####/##### #? ?????? | | !/ !#??? ????????????# / ???????? | | ] / #???" ""##?######?# + ???????? | | ] #??"" ""#!## ## ### + ????????? | | ? #??"" ! S#]!!* # c +??????????? | | ? #?? ""#][! 7%=@ #????????????????? | | ? #??"" ""# 7Y[*!; #????????????????? | | ?# +???" ""#" !* #????????????????? | | ?# #???" #""[!| "]+ #????????????????? | | ?# #???? #" ]! [ #????????????????? | | ?# #???? """ #"" [ A # #????????????????? | | # #?????""" #"" # #????????????????? | | # ^^ #?????""" # # #????????????????? | | " #?????? ?##+######## #????????????????? | | # +?????? ??# #??????# #????????????????? | | %+% ##?????#+#??# #??????# #????????????????? | | "% # ##??#=#??# #??????# #????????????????? | | ?#= # ??#[#??# ???????# #????????????????? | | ## ### #### #??# ???????" #????????????????? | | %% [*=[!#??# ??????## #????????????????? | | == ==!!=#??# #??????# #????????????????? | | * !%! #### #??????# #????????????????? | | ![%=*= ######## #????????????????? | | ## =%= % #????????????????? | | # ###+######## #????????????????? | | # ########+#### # #????????????????? | | # #?# # | | # #????????????????! | | # #?# # %! # #????????????????? | | # #?# + ! ! # #????????????????? | | # #?# # + #????????????????? | +----------------------------------------------------+ Best States ------------- Heat Dissipation 148 Coolant Potential 120 Energy Generation 29 Energy Capacity 950 Matter Stores 300 Matter Capacity 300 Sight Range 24 Robot Scan Range 20 Terrain Scan Density 10 Jamming Range 12 Additional Mass Support 9 Armor Coverage 1500 Resistance: KI 25 Resistance: TH 25 Utility Shielding 33 Weapon Cycling 30 Melee Speed Boost 20 Phase Shifting 10 Evasion (%) 50 Targeting Accuracy 8 Melee Accuracy 6 Target Analysis 12 Core Analysis 10 Armor Integrity Analysis 66 Recoil Reduction 4 Energy Filtering 30 Offensive Hacking 46 Defensive Hacking 37 Item Schematics ----------------- None Robot Schematics ------------------ None Fabricated ------------ Kinetic Spear | x1 | -6/Factory Lrn. Sensor Array | x1 | -3/Research Alien Tech Used ----------------- Core Reset Matrix Core Membrane Integrated Heat Negator Integrated Dissipator Subatomic Replicator Core Regenerator Achievements -------------- None Challenges ------------ None Game ------ Seed LatentBattleStorage Manual? 0 Play Time 06:03:01 Cumulative 179.9 hours Start 2021.07.03 @ 19:12:34 End 2021.07.04 @ 16:15:07 Sessions 3 Manual Loads 0 Difficulty Rogue Special Mode None Game No. 56 Rogue 56 Adventurer 0 Explorer 0 Win Type - Total 3 Types 2/0/1/0/0/0/0/0/0 Lore% 68 Gallery% 78 Achievement% 62 Wizard Run 0 Options --------- ASCII 0 Keyboard 0 Movement Numpad Keybinds 0 Fullscreen 1 Font 18/SmallcapsGlow Map View 76x50 Tactical HUD 1 Map Filters NONE Filters NONE Steam 1 RUN: f7551281-568b-4202-a029-674ca077b110